Workbook

Sheet Welcome
K6: Fall 2022 Order Form
C13: INSTRUCTIONS:
B15:  | C15: On the Title List tab below, view the list of eBooks and print books available. Make your selections by entering the quantity you wish to order in the appropriate column.
B17:  | C17: By clicking the Sort Order button at the top, this will condense the list to show only your selections. To expand the list back to show everything, click on the Unsort Order button.
B19:  | C19: If you wish to apply the Buy 2, Get 1 Free promotion, place an X in Column AC next to the titles you wish to receive Free.
B21:  | C21: Once all your selections are complete, click on the Finalize Order button at the top of the Title List tab. This will copy your selections to the Summary tab where you can also
D22: enter your ship to and bill to addresses along with any other order information.
B24:  | C24: If you need to make any changes once you have finalized the order, click on the Edit Order button on the Summary tab. This will revert the order back to the Title List tab
D25: where you can make the changes. Once changes are made, click on the Finalize Order button again and you will be brought back to the Summary tab.
B27:  | C27: To reset the form back to the start, click on the Restart Order button.
B29: ** DO NOT HIDE OR DELETE ANY COLUMNS / ROWS AS THIS WILL CREATE ERRORS AND THE FORM WILL NOT WORK PROPERLY**
B32: Thank you and we hope you enjoy your books!!

Sheet Title List
W2: Eligible for: | Y2: =IF(AO5>=500,AQ10350/3,0) -> 0 | AA2: Free Books (excluding Bundles) | AH2: EB TOTALS | AL2: HC TOTALS | AO2: ORDER TOTALS
W4: Free books used so far: | Y4: =AR10349 -> 0 | AC4: Indiana Rep: | AE4: mikewhite@booklookindiana.com | AH4: =AG10349+AH10349+AO10350 -> 0 | AI4: Total Qty | AL4: =AK10349+AL10349+AO10350 -> 0 | AM4: Total Qty | AO4: =AH4+AL4 -> 0 | AP4: Total Qty
W5: eBooks | Y5: Print Books | AA5: Bundles | AE5: TOTALS | AH5: =AI10350 -> 0 | AI5: Total Subtotal B4 PROMO | AL5: =AM10350 -> 0 | AM5: Total Subtotal B4 PROMO | AO5: =AH5+AL5 -> 0 | AP5: Subtotal
U6: Qty of Books | W6: =AH4 -> 0 | Y6: =AL4 -> 0 | AE6: =W6+Y6 -> 0 | AH6: =AJ10349 -> 0 | AI6: Total FREE Subtotal | AL6: =AN10349 -> 0 | AM6: Total FREE Subtotal | AO6: =AH6+AL6 -> 0 | AP6: Total FREE
U8: Subtotal | W8: =AH5 -> 0 | Y8: =AL5 -> 0 | AA8: =AP10349 -> 0 | AE8: =W8+Y8+AA8 -> 0 | AH8: =AH5+AH6 -> 0 | AI8: TOTAL EB | AL8: =AL5+AL6 -> 0 | AM8: TOTAL HC | AO8: =AH8+AL8 -> 0 | AP8: TOTAL ORDER
U9: Less promo | W9: =IF(AO5>=500,AH6,0) -> 0 | Y9: =IF(AO5>=500,AL6,0) -> 0 | AE9: =W9+Y9 -> 0
AE11: =AE8+AE9 -> 0 | AG11: HIDDEN | AH11: HIDDEN | AI11: HIDDEN | AJ11: HIDDEN | AK11: HIDDEN | AL11: HIDDEN | AM11: HIDDEN | AN11: HIDDEN | AO11: HIDDEN | AP11: HIDDEN | AQ11: HIDDEN | AR11: HIDDEN | AS11: HIDDEN | AT11: HIDDEN | AU11: HIDDEN
A13: Multi User eBook Qty | C13: Print Qty | E13: Bundle Qty | G13: eBook ISBN | I13: Print ISBN | K13: Title (NEW listed in Blue) | O13: Series | S13: Publisher | U13: Multi User eBook Price | W13: School / Library Print Price | Y13: Bundle Price | AA13: Subtotal | AC13: Mark X for FREE | AE13: Custom Field | AG13: EB PURCH QTY | AH13: EB FREE QTY | AI13: EB PURCH TOTAL | AJ13: EB FREE TOTAL | AK13: HC PURCH QTY | AL13: HC FREE QTY | AM13: HC PURCH TOTAL | AN13: HC FREE TOTAL | AO13: BUNDLE QTY | AP13: BUNDLE TOTAL | AQ13: PURCH QTY TOTAL | AR13: FREE QTY TOTAL | AS13: TOTAL QTY SORT COLUMN | AT13: PURCH TOTAL | AU13: FREE TOTAL | AV13: Season Released | AX13: Copyright Year | AZ13: Dewey Number | BB13: Reviews | BD13: Publishers' Catalog Page Number | BF13: LIST PRICE | BH13: Imprint | BJ13: AR Level | BL13: Subject | BN13: Language | BP13: Binding | BR13: Page Count | BT13: Guided Reading Level | BV13: Lexile Level | BX13: Reading Level (by Grade) | BZ13: Author
K15: Complete Series of 9 | O15: 1,2,3... Count With Me | U15: =SUM(U16:U24) -> 0 | W15: =SUM(W16:W24) -> 215.55 | Y15: =SUM(Y16:Y24) -> 0
C16: =C15 -> 0 | G16: Not Available | I16: 9781607539193 | K16: Across the Country 18, 19, 20 | O16: 1,2,3... Count With Me | S16: Amicus | U16: 0 | W16: 23.95 | Y16: 0 | AA16: =IF(AC16=FALSE,AT16,0) -> 0 | AG16: =IF(AND(A16>=1,AC16=""),A16,0) -> 0 | AH16: =IF(AND(A16>=1,AC16="x"),A16,0) -> 0 | AI16: =IF(AND(A16>=1,AC16=""),U16,0) -> 0 | AJ16: =IF(AND(A16>=1,AC16="x"),-U16,0) -> 0 | AK16: =IF(AND(C16>=1,AC16=""),C16,0) -> 0 | AL16: =IF(AND(C16>=1,AC16="x"),C16,0) -> 0 | AM16: =IF(AND(C16>=1,AC16=""),W16*C16,0) -> 0 | AN16: =IF(AND(C16>=1,AC16="x"),-W16*C16,0) -> 0 | AO16: =E16 -> 0 | AP16: =Y16*E16 -> 0 | AQ16: =AG16+AK16+AO16 -> 0 | AR16: =AH16+AL16 -> 0 | AS16: =AQ16+AR16 -> 0 | AT16: =AI16+AM16+AP16 -> 0 | AU16: =AJ16+AN16 -> 0 | AV16: Fall 2016 | AX16: 2017 | AZ16: 388.3/4 | BD16: Website | BF16: 34.25 | BH16: Amicus Readers | BJ16: 1.5 | BL16: Math | BN16: English | BP16: Reinforced Library | BR16: 24 | BT16: G | BV16: 380L | BX16: K - 3 | BZ16: Martha E. H. Rustad
C17: =C15 -> 0 | G17: Not Available | I17: 9781607539209 | K17: Chicks 2, 4, 6 | O17: 1,2,3... Count With Me | S17: Amicus | U17: 0 | W17: 23.95 | Y17: 0 | AA17: 0 | AG17: 0 | AH17: 0 | AI17: 0 | AJ17: 0 | AK17: 0 | AL17: 0 | AM17: 0 | AN17: 0 | AO17: 0 | AP17: 0 | AQ17: 0 | AR17: 0 | AS17: 0 | AT17: 0 | AU17: 0 | AV17: Fall 2016 | AX17: 2017 | AZ17: 513.2/11 | BD17: Website | BF17: 34.25 | BH17: Amicus Readers | BJ17: 1.3 | BL17: Math | BN17: English | BP17: Reinforced Library | BR17: 24 | BT17: E | BV17: 410L | BX17: K - 3 | BZ17: Martha E. H. Rustad
C18: =C15 -> 0 | G18: Not Available | I18: 9781607537151 | K18: Down in the Jungle 1,2,3 | O18: 1,2,3... Count With Me | S18: Amicus | U18: 0 | W18: 23.95 | Y18: 0 | AA18: 0 | AG18: 0 | AH18: 0 | AI18: 0 | AJ18: 0 | AK18: 0 | AL18: 0 | AM18: 0 | AN18: 0 | AO18: 0 | AP18: 0 | AQ18: 0 | AR18: 0 | AS18: 0 | AT18: 0 | AU18: 0 | AV18: Fall 2015 | AX18: 2016 | AZ18: 513.2/11 | BD18: Website | BF18: 34.25 | BH18: Amicus Readers | BJ18: 1.5 | BL18: Math | BN18: English | BP18: Reinforced Library | BR18: 24 | BT18: E | BV18: 380L | BX18: K - 3 | BZ18: Tracey E. Dils
C19: =C15 -> 0 | G19: Not Available | I19: 9781607537182 | K19: Down on the Farm 1,2,3 | O19: 1,2,3... Count With Me | S19: Amicus | U19: 0 | W19: 23.95 | Y19: 0 | AA19: 0 | AG19: 0 | AH19: 0 | AI19: 0 | AJ19: 0 | AK19: 0 | AL19: 0 | AM19: 0 | AN19: 0 | AO19: 0 | AP19: 0 | AQ19: 0 | AR19: 0 | AS19: 0 | AT19: 0 | AU19: 0 | AV19: Fall 2015 | AX19: 2016 | AZ19: 513.2/11 | BD19: Website | BF19: 34.25 | BH19: Amicus Readers | BJ19: 1.3 | BL19: Math | BN19: English | BP19: Reinforced Library | BR19: 24 | BT19: E | BV19: 370L | BX19: K - 3 | BZ19: Tracey E. Dils
C20: =C15 -> 0 | G20: Not Available | I20: 9781607537199 | K20: Falling Leaves 1,2,3 | O20: 1,2,3... Count With Me | S20: Amicus | U20: 0 | W20: 23.95 | Y20: 0 | AA20: 0 | AG20: 0 | AH20: 0 | AI20: 0 | AJ20: 0 | AK20: 0 | AL20: 0 | AM20: 0 | AN20: 0 | AO20: 0 | AP20: 0 | AQ20: 0 | AR20: 0 | AS20: 0 | AT20: 0 | AU20: 0 | AV20: Fall 2015 | AX20: 2016 | AZ20: 513.2/11 | BD20: Website | BF20: 34.25 | BH20: Amicus Readers | BJ20: 1.4 | BL20: Math | BN20: English | BP20: Reinforced Library | BR20: 24 | BT20: E | BV20: 360L | BX20: K - 3 | BZ20: Tracey E. Dils
C21: =C15 -> 0 | G21: Not Available | I21: 9781607537168 | K21: My Pets and Me 1,2,3 | O21: 1,2,3... Count With Me | S21: Amicus | U21: 0 | W21: 23.95 | Y21: 0 | AA21: 0 | AG21: 0 | AH21: 0 | AI21: 0 | AJ21: 0 | AK21: 0 | AL21: 0 | AM21: 0 | AN21: 0 | AO21: 0 | AP21: 0 | AQ21: 0 | AR21: 0 | AS21: 0 | AT21: 0 | AU21: 0 | AV21: Fall 2015 | AX21: 2016 | AZ21: 513.2/11 | BD21: Website | BF21: 34.25 | BH21: Amicus Readers | BJ21: 1.3 | BL21: Math | BN21: English | BP21: Reinforced Library | BR21: 24 | BT21: E | BV21: 340L | BX21: K - 3 | BZ21: Tracey E. Dils
C22: =C15 -> 0 | G22: Not Available | I22: 9781607539223 | K22: On a Safari 5, 10, 15 | O22: 1,2,3... Count With Me | S22: Amicus | U22: 0 | W22: 23.95 | Y22: 0 | AA22: 0 | AG22: 0 | AH22: 0 | AI22: 0 | AJ22: 0 | AK22: 0 | AL22: 0 | AM22: 0 | AN22: 0 | AO22: 0 | AP22: 0 | AQ22: 0 | AR22: 0 | AS22: 0 | AT22: 0 | AU22: 0 | AV22: Fall 2016 | AX22: 2017 | AZ22: 513.2/11 | BD22: Website | BF22: 34.25 | BH22: Amicus Readers | BJ22: 1.4 | BL22: Math | BN22: English | BP22: Reinforced Library | BR22: 24 | BT22: G | BV22: 280L | BX22: K - 3 | BZ22: Martha E. H. Rustad
C23: =C15 -> 0 | G23: Not Available | I23: 9781607539230 | K23: One More Bug | O23: 1,2,3... Count With Me | S23: Amicus | U23: 0 | W23: 23.95 | Y23: 0 | AA23: 0 | AG23: 0 | AH23: 0 | AI23: 0 | AJ23: 0 | AK23: 0 | AL23: 0 | AM23: 0 | AN23: 0 | AO23: 0 | AP23: 0 | AQ23: 0 | AR23: 0 | AS23: 0 | AT23: 0 | AU23: 0 | AV23: Fall 2016 | AX23: 2017 | AZ23: 513.2/11 | BD23: Website | BF23: 34.25 | BH23: Amicus Readers | BJ23: 1.6 | BL23: Math | BN23: English | BP23: Reinforced Library | BR23: 24 | BT23: F | BV23: 390L | BX23: K - 3 | BZ23: Martha E. H. Rustad
C24: =C15 -> 0 | G24: Not Available | I24: 9781607537175 | K24: Under the Sea 1,2,3 | O24: 1,2,3... Count With Me | S24: Amicus | U24: 0 | W24: 23.95 | Y24: 0 | AA24: 0 | AG24: 0 | AH24: 0 | AI24: 0 | AJ24: 0 | AK24: 0 | AL24: 0 | AM24: 0 | AN24: 0 | AO24: 0 | AP24: 0 | AQ24: 0 | AR24: 0 | AS24: 0 | AT24: 0 | AU24: 0 | AV24: Fall 2015 | AX24: 2016 | AZ24: 513.2/11 | BD24: Website | BF24: 34.25 | BH24: Amicus Readers | BJ24: 1.7 | BL24: Math | BN24: English | BP24: Reinforced Library | BR24: 24 | BT24: E | BV24: 460L | BX24: K - 3 | BZ24: Tracey E. Dils
K26: Complete Series of 6 | O26: Adventures in Science | U26: =SUM(U27:U32) -> 0 | W26: =SUM(W27:W32) -> 143.7 | Y26: =SUM(Y27:Y32) -> 0
C27: =C26 -> 0 | G27: Not Available | I27: 9781607539612 | K27: Do You Really Want to Burn Your Toast? | O27: Adventures in Science | S27: Amicus | U27: 0 | W27: 23.95 | Y27: 0 | AA27: =IF(AC27=FALSE,AT27,0) -> 0 | AG27: =IF(AND(A27>=1,AC27=""),A27,0) -> 0 | AH27: =IF(AND(A27>=1,AC27="x"),A27,0) -> 0 | AI27: =IF(AND(A27>=1,AC27=""),U27,0) -> 0 | AJ27: =IF(AND(A27>=1,AC27="x"),-U27,0) -> 0 | AK27: =IF(AND(C27>=1,AC27=""),C27,0) -> 0 | AL27: =IF(AND(C27>=1,AC27="x"),C27,0) -> 0 | AM27: =IF(AND(C27>=1,AC27=""),W27*C27,0) -> 0 | AN27: =IF(AND(C27>=1,AC27="x"),-W27*C27,0) -> 0 | AO27: =E27 -> 0 | AP27: =Y27*E27 -> 0 | AQ27: =AG27+AK27+AO27 -> 0 | AR27: =AH27+AL27 -> 0 | AS27: =AQ27+AR27 -> 0 | AT27: =AI27+AM27+AP27 -> 0 | AU27: =AJ27+AN27 -> 0 | AV27: Fall 2016 | AX27: 2017 | AZ27: 536 | BD27: 39 | BF27: 34.25 | BH27: Amicus Illustrated | BJ27: 2.6 | BL27: Science | BN27: English | BP27: Reinforced Library | BR27: 24 | BT27: J | BV27: 520L | BX27: 2 – 5 | BZ27: Daniel D. Maurer
C28: =C26 -> 0 | G28: Not Available | I28: 9781607539575 | K28: Do You Really Want to Create a Mudslide? | O28: Adventures in Science | S28: Amicus | U28: 0 | W28: 23.95 | Y28: 0 | AA28: 0 | AG28: 0 | AH28: 0 | AI28: 0 | AJ28: 0 | AK28: 0 | AL28: 0 | AM28: 0 | AN28: 0 | AO28: 0 | AP28: 0 | AQ28: 0 | AR28: 0 | AS28: 0 | AT28: 0 | AU28: 0 | AV28: Fall 2016 | AX28: 2017 | AZ28: 551.3/52 | BD28: 39 | BF28: 34.25 | BH28: Amicus Illustrated | BJ28: 2.8 | BL28: Science | BN28: English | BP28: Reinforced Library | BR28: 24 | BT28: J | BV28: 610L | BX28: 2 – 5 | BZ28: Daniel D. Maurer
C29: =C26 -> 0 | G29: Not Available | I29: 9781607539599 | K29: Do You Really Want to Drive in a Blizzard? | O29: Adventures in Science | S29: Amicus | U29: 0 | W29: 23.95 | Y29: 0 | AA29: 0 | AG29: 0 | AH29: 0 | AI29: 0 | AJ29: 0 | AK29: 0 | AL29: 0 | AM29: 0 | AN29: 0 | AO29: 0 | AP29: 0 | AQ29: 0 | AR29: 0 | AS29: 0 | AT29: 0 | AU29: 0 | AV29: Fall 2016 | AX29: 2017 | AZ29: 551.63 | BD29: 39 | BF29: 34.25 | BH29: Amicus Illustrated | BJ29: 3 | BL29: Science | BN29: English | BP29: Reinforced Library | BR29: 24 | BT29: J | BV29: 590L | BX29: 2 – 5 | BZ29: Daniel D. Maurer
C30: =C26 -> 0 | G30: Not Available | I30: 9781607539582 | K30: Do You Really Want to Skate on Thin Ice? | O30: Adventures in Science | S30: Amicus | U30: 0 | W30: 23.95 | Y30: 0 | AA30: 0 | AG30: 0 | AH30: 0 | AI30: 0 | AJ30: 0 | AK30: 0 | AL30: 0 | AM30: 0 | AN30: 0 | AO30: 0 | AP30: 0 | AQ30: 0 | AR30: 0 | AS30: 0 | AT30: 0 | AU30: 0 | AV30: Fall 2016 | AX30: 2017 | AZ30: 530.4 | BD30: 39 | BF30: 34.25 | BH30: Amicus Illustrated | BJ30: 2.9 | BL30: Science | BN30: English | BP30: Reinforced Library | BR30: 24 | BT30: J | BV30: 600L | BX30: 2 – 5 | BZ30: Daniel D. Maurer
C31: =C26 -> 0 | G31: Not Available | I31: 9781607539605 | K31: Do You Really Want to Walk in the Dark? | O31: Adventures in Science | S31: Amicus | U31: 0 | W31: 23.95 | Y31: 0 | AA31: 0 | AG31: 0 | AH31: 0 | AI31: 0 | AJ31: 0 | AK31: 0 | AL31: 0 | AM31: 0 | AN31: 0 | AO31: 0 | AP31: 0 | AQ31: 0 | AR31: 0 | AS31: 0 | AT31: 0 | AU31: 0 | AV31: Fall 2016 | AX31: 2017 | AZ31: 535 | BD31: 39 | BF31: 34.25 | BH31: Amicus Illustrated | BJ31: 3 | BL31: Science | BN31: English | BP31: Reinforced Library | BR31: 24 | BT31: J | BV31: 570L | BX31: 2 – 5 | BZ31: Daniel D. Maurer
C32: =C26 -> 0 | G32: Not Available | I32: 9781607539568 | K32: Do You Really Want to Yell in a Cave? | O32: Adventures in Science | S32: Amicus | U32: 0 | W32: 23.95 | Y32: 0 | AA32: 0 | AG32: 0 | AH32: 0 | AI32: 0 | AJ32: 0 | AK32: 0 | AL32: 0 | AM32: 0 | AN32: 0 | AO32: 0 | AP32: 0 | AQ32: 0 | AR32: 0 | AS32: 0 | AT32: 0 | AU32: 0 | AV32: Fall 2016 | AX32: 2017 | AZ32: 534 | BD32: 39 | BF32: 34.25 | BH32: Amicus Illustrated | BJ32: 2.4 | BL32: Science | BN32: English | BP32: Reinforced Library | BR32: 24 | BT32: J | BV32: 440L | BX32: 2 – 5 | BZ32: Daniel D. Maurer
K34: Complete Series of 6 | O34: Aesop's Fables Remixed | U34: =SUM(U35:U40) -> 0 | W34: =SUM(W35:W40) -> 143.7 | Y34: =SUM(Y35:Y40) -> 0
C35: =C34 -> 0 | G35: Not Available | I35: 9781607539520 | K35: Abby Visits the Big City | O35: Aesop's Fables Remixed | S35: Amicus | U35: 0 | W35: 23.95 | Y35: 0 | AA35: =IF(AC35=FALSE,AT35,0) -> 0 | AG35: =IF(AND(A35>=1,AC35=""),A35,0) -> 0 | AH35: =IF(AND(A35>=1,AC35="x"),A35,0) -> 0 | AI35: =IF(AND(A35>=1,AC35=""),U35,0) -> 0 | AJ35: =IF(AND(A35>=1,AC35="x"),-U35,0) -> 0 | AK35: =IF(AND(C35>=1,AC35=""),C35,0) -> 0 | AL35: =IF(AND(C35>=1,AC35="x"),C35,0) -> 0 | AM35: =IF(AND(C35>=1,AC35=""),W35*C35,0) -> 0 | AN35: =IF(AND(C35>=1,AC35="x"),-W35*C35,0) -> 0 | AO35: =E35 -> 0 | AP35: =Y35*E35 -> 0 | AQ35: =AG35+AK35+AO35 -> 0 | AR35: =AH35+AL35 -> 0 | AS35: =AQ35+AR35 -> 0 | AT35: =AI35+AM35+AP35 -> 0 | AU35: =AJ35+AN35 -> 0 | AV35: Fall 2016 | AX35: 2017 | AZ35: 398.2 | BD35: 42 | BF35: 34.25 | BH35: Amicus Illustrated | BJ35: 2.7 | BL35: Language Arts | BN35: English | BP35: Reinforced Library | BR35: 24 | BT35: J | BV35: 340L | BX35: 2 – 5 | BZ35: Connie Colwell Miller
C36: =C34 -> 0 | G36: Not Available | I36: 9781607539513 | K36: Andrew and the Birthday Surprise | O36: Aesop's Fables Remixed | S36: Amicus | U36: 0 | W36: 23.95 | Y36: 0 | AA36: 0 | AG36: 0 | AH36: 0 | AI36: 0 | AJ36: 0 | AK36: 0 | AL36: 0 | AM36: 0 | AN36: 0 | AO36: 0 | AP36: 0 | AQ36: 0 | AR36: 0 | AS36: 0 | AT36: 0 | AU36: 0 | AV36: Fall 2016 | AX36: 2017 | AZ36: 398.2 | BD36: 42 | BF36: 34.25 | BH36: Amicus Illustrated | BJ36: 2.2 | BL36: Language Arts | BN36: English | BP36: Reinforced Library | BR36: 24 | BT36: J | BV36: 350L | BX36: 2 – 5 | BZ36: Connie Colwell Miller
C37: =C34 -> 0 | G37: Not Available | I37: 9781607539506 | K37: Henry’s Track and Field Day | O37: Aesop's Fables Remixed | S37: Amicus | U37: 0 | W37: 23.95 | Y37: 0 | AA37: 0 | AG37: 0 | AH37: 0 | AI37: 0 | AJ37: 0 | AK37: 0 | AL37: 0 | AM37: 0 | AN37: 0 | AO37: 0 | AP37: 0 | AQ37: 0 | AR37: 0 | AS37: 0 | AT37: 0 | AU37: 0 | AV37: Fall 2016 | AX37: 2017 | AZ37: 398.2 | BD37: 42 | BF37: 34.25 | BH37: Amicus Illustrated | BJ37: 2.6 | BL37: Language Arts | BN37: English | BP37: Reinforced Library | BR37: 24 | BT37: J | BV37: 300L | BX37: 2 – 5 | BZ37: Connie Colwell Miller
C38: =C34 -> 0 | G38: Not Available | I38: 9781607539544 | K38: James and the Kindergartener | O38: Aesop's Fables Remixed | S38: Amicus | U38: 0 | W38: 23.95 | Y38: 0 | AA38: 0 | AG38: 0 | AH38: 0 | AI38: 0 | AJ38: 0 | AK38: 0 | AL38: 0 | AM38: 0 | AN38: 0 | AO38: 0 | AP38: 0 | AQ38: 0 | AR38: 0 | AS38: 0 | AT38: 0 | AU38: 0 | AV38: Fall 2016 | AX38: 2017 | AZ38: 398.2 | BD38: 42 | BF38: 34.25 | BH38: Amicus Illustrated | BJ38: 2.4 | BL38: Language Arts | BN38: English | BP38: Reinforced Library | BR38: 24 | BT38: J | BV38: 380L | BX38: 2 – 5 | BZ38: Connie Colwell Miller
C39: =C34 -> 0 | G39: Not Available | I39: 9781607539551 | K39: Mary, Anna, and the Little Brother | O39: Aesop's Fables Remixed | S39: Amicus | U39: 0 | W39: 23.95 | Y39: 0 | AA39: 0 | AG39: 0 | AH39: 0 | AI39: 0 | AJ39: 0 | AK39: 0 | AL39: 0 | AM39: 0 | AN39: 0 | AO39: 0 | AP39: 0 | AQ39: 0 | AR39: 0 | AS39: 0 | AT39: 0 | AU39: 0 | AV39: Fall 2016 | AX39: 2017 | AZ39: 398.2 | BD39: 42 | BF39: 34.25 | BH39: Amicus Illustrated | BJ39: 2.3 | BL39: Language Arts | BN39: English | BP39: Reinforced Library | BR39: 24 | BT39: J | BV39: 300L | BX39: 2 – 5 | BZ39: Connie Colwell Miller
C40: =C34 -> 0 | G40: Not Available | I40: 9781607539537 | K40: Rosie’s Special Gift | O40: Aesop's Fables Remixed | S40: Amicus | U40: 0 | W40: 23.95 | Y40: 0 | AA40: 0 | AG40: 0 | AH40: 0 | AI40: 0 | AJ40: 0 | AK40: 0 | AL40: 0 | AM40: 0 | AN40: 0 | AO40: 0 | AP40: 0 | AQ40: 0 | AR40: 0 | AS40: 0 | AT40: 0 | AU40: 0 | AV40: Fall 2016 | AX40: 2017 | AZ40: 398.2 | BD40: 42 | BF40: 34.25 | BH40: Amicus Illustrated | BJ40: 2.4 | BL40: Language Arts | BN40: English | BP40: Reinforced Library | BR40: 24 | BT40: J | BV40: 360L | BX40: 2 – 5 | BZ40: Connie Colwell Miller
K42: Complete Series of 6 | O42: Amazing Adventures | U42: =SUM(U43:U48) -> 257.1 | W42: =SUM(W43:W48) -> 125.7 | Y42: =SUM(Y43:Y48) -> 155.7
A43: =A42 -> 0 | C43: =C42 -> 0 | E43: =E42 -> 0 | G43: 9781681513515 | I43: 9781681513157 | K43: Blast off to Space | O43: Amazing Adventures | S43: Amicus | U43: 42.85 | W43: 20.95 | Y43: =W43+5 -> 25.95 | AA43: =IF(AC43=FALSE,AT43,0) -> 0 | AG43: =IF(AND(A43>=1,AC43=""),A43,0) -> 0 | AH43: =IF(AND(A43>=1,AC43="x"),A43,0) -> 0 | AI43: =IF(AND(A43>=1,AC43=""),U43,0) -> 0 | AJ43: =IF(AND(A43>=1,AC43="x"),-U43,0) -> 0 | AK43: =IF(AND(C43>=1,AC43=""),C43,0) -> 0 | AL43: =IF(AND(C43>=1,AC43="x"),C43,0) -> 0 | AM43: =IF(AND(C43>=1,AC43=""),W43*C43,0) -> 0 | AN43: =IF(AND(C43>=1,AC43="x"),-W43*C43,0) -> 0 | AO43: =E43 -> 0 | AP43: =Y43*E43 -> 0 | AQ43: =AG43+AK43+AO43 -> 0 | AR43: =AH43+AL43 -> 0 | AS43: =AQ43+AR43 -> 0 | AT43: =AI43+AM43+AP43 -> 0 | AU43: =AJ43+AN43 -> 0 | AV43: Spring 2018 | AX43: 2018 | AZ43: 629.4 | BD43: Website | BF43: 29.95 | BH43: Amicus Readers | BJ43: 1 | BL43: Social Studies | BN43: English | BP43: Reinforced Library | BR43: 16 | BT43: F | BV43: 320L | BX43: K - 2 | BZ43: K.C. Kelley
A44: =A42 -> 0 | C44: =C42 -> 0 | E44: =E42 -> 0 | G44: 9781681513508 | I44: 9781681513140 | K44: Explore a Cave | O44: Amazing Adventures | S44: Amicus | U44: 42.85 | W44: 20.95 | Y44: 25.95 | AA44: 0 | AG44: 0 | AH44: 0 | AI44: 0 | AJ44: 0 | AK44: 0 | AL44: 0 | AM44: 0 | AN44: 0 | AO44: 0 | AP44: 0 | AQ44: 0 | AR44: 0 | AS44: 0 | AT44: 0 | AU44: 0 | AV44: Spring 2018 | AX44: 2018 | AZ44: 551.44/7 | BD44: Website | BF44: 29.95 | BH44: Amicus Readers | BJ44: 1 | BL44: Social Studies | BN44: English | BP44: Reinforced Library | BR44: 16 | BT44: F | BV44: 310L | BX44: K - 2 | BZ44: K.C. Kelley
A45: =A42 -> 0 | C45: =C42 -> 0 | E45: =E42 -> 0 | G45: 9781681513478 | I45: 9781681513119 | K45: Hike a Mountain | O45: Amazing Adventures | S45: Amicus | U45: 42.85 | W45: 20.95 | Y45: 25.95 | AA45: 0 | AG45: 0 | AH45: 0 | AI45: 0 | AJ45: 0 | AK45: 0 | AL45: 0 | AM45: 0 | AN45: 0 | AO45: 0 | AP45: 0 | AQ45: 0 | AR45: 0 | AS45: 0 | AT45: 0 | AU45: 0 | AV45: Spring 2018 | AX45: 2018 | AZ45: 796.51 | BD45: Website | BF45: 29.95 | BH45: Amicus Readers | BJ45: 0.8 | BL45: Social Studies | BN45: English | BP45: Reinforced Library | BR45: 16 | BT45: F | BV45: 290L | BX45: K - 2 | BZ45: K.C. Kelley
A46: =A42 -> 0 | C46: =C42 -> 0 | E46: =E42 -> 0 | G46: 9781681513492 | I46: 9781681513133 | K46: Journey through a Desert | O46: Amazing Adventures | S46: Amicus | U46: 42.85 | W46: 20.95 | Y46: 25.95 | AA46: 0 | AG46: 0 | AH46: 0 | AI46: 0 | AJ46: 0 | AK46: 0 | AL46: 0 | AM46: 0 | AN46: 0 | AO46: 0 | AP46: 0 | AQ46: 0 | AR46: 0 | AS46: 0 | AT46: 0 | AU46: 0 | AV46: Spring 2018 | AX46: 2018 | AZ46: 551.41/5 | BD46: Website | BF46: 29.95 | BH46: Amicus Readers | BJ46: 0.8 | BL46: Social Studies | BN46: English | BP46: Reinforced Library | BR46: 16 | BT46: F | BV46: 240L | BX46: K - 2 | BZ46: K.C. Kelley
A47: =A42 -> 0 | C47: =C42 -> 0 | E47: =E42 -> 0 | G47: 9781681513461 | I47: 9781681513102 | K47: Snorkel Coral Reefs | O47: Amazing Adventures | S47: Amicus | U47: 42.85 | W47: 20.95 | Y47: 25.95 | AA47: 0 | AG47: 0 | AH47: 0 | AI47: 0 | AJ47: 0 | AK47: 0 | AL47: 0 | AM47: 0 | AN47: 0 | AO47: 0 | AP47: 0 | AQ47: 0 | AR47: 0 | AS47: 0 | AT47: 0 | AU47: 0 | AV47: Spring 2018 | AX47: 2018 | AZ47: 578.77/89 | BD47: Website | BF47: 29.95 | BH47: Amicus Readers | BJ47: 0.9 | BL47: Social Studies | BN47: English | BP47: Reinforced Library | BR47: 16 | BT47: F | BV47: 300L | BX47: K - 2 | BZ47: K.C. Kelley
A48: =A42 -> 0 | C48: =C42 -> 0 | E48: =E42 -> 0 | G48: 9781681513485 | I48: 9781681513126 | K48: Trek the Rain Forest | O48: Amazing Adventures | S48: Amicus | U48: 42.85 | W48: 20.95 | Y48: 25.95 | AA48: 0 | AG48: 0 | AH48: 0 | AI48: 0 | AJ48: 0 | AK48: 0 | AL48: 0 | AM48: 0 | AN48: 0 | AO48: 0 | AP48: 0 | AQ48: 0 | AR48: 0 | AS48: 0 | AT48: 0 | AU48: 0 | AV48: Spring 2018 | AX48: 2018 | AZ48: 591.734 | BD48: Website | BF48: 29.95 | BH48: Amicus Readers | BJ48: 1 | BL48: Social Studies | BN48: English | BP48: Reinforced Library | BR48: 16 | BT48: F | BV48: 300L | BX48: K - 2 | BZ48: K.C. Kelley
K50: Complete Series of 3 | O50: Amicus Ink Board Books | U50: =SUM(U51:U53) -> 42.9 | W50: =SUM(W51:W53) -> 29.97 | Y50: =SUM(Y51:Y53) -> 44.97
A51: =A50 -> 0 | C51: =C50 -> 0 | E51: =E50 -> 0 | G51: 9781681525129 | I51: 9781681521947 | K51: It's Not the Baby | O51: Amicus Ink Board Books | S51: Amicus | U51: 14.3 | W51: 9.99 | Y51: =W51+5 -> 14.99 | AA51: =IF(AC51=FALSE,AT51,0) -> 0 | AG51: =IF(AND(A51>=1,AC51=""),A51,0) -> 0 | AH51: =IF(AND(A51>=1,AC51="x"),A51,0) -> 0 | AI51: =IF(AND(A51>=1,AC51=""),U51,0) -> 0 | AJ51: =IF(AND(A51>=1,AC51="x"),-U51,0) -> 0 | AK51: =IF(AND(C51>=1,AC51=""),C51,0) -> 0 | AL51: =IF(AND(C51>=1,AC51="x"),C51,0) -> 0 | AM51: =IF(AND(C51>=1,AC51=""),W51*C51,0) -> 0 | AN51: =IF(AND(C51>=1,AC51="x"),-W51*C51,0) -> 0 | AO51: =E51 -> 0 | AP51: =Y51*E51 -> 0 | AQ51: =AG51+AK51+AO51 -> 0 | AR51: =AH51+AL51 -> 0 | AS51: =AQ51+AR51 -> 0 | AT51: =AI51+AM51+AP51 -> 0 | AU51: =AJ51+AN51 -> 0 | AV51: Fall 2017 | AX51: 2018 | AZ51: E | BD51: 14 | BF51: 9.99 | BH51: Amicus Ink | BJ51: Not Quizzable | BL51: Fiction | BN51: English | BP51: Board Book | BR51: 14 | BX51: 4 - 8 | BZ51: J. Patrick Lewis & Leigh Lewis
A52: =A50 -> 0 | C52: =C50 -> 0 | E52: =E50 -> 0 | G52: 9781681525150 | I52: 9781681524092 | K52: It's Not the Puppy | O52: Amicus Ink Board Books | S52: Amicus | U52: 14.3 | W52: 9.99 | Y52: =W52+5 -> 14.99 | AA52: =IF(AC52=FALSE,AT52,0) -> 0 | AG52: =IF(AND(A52>=1,AC52=""),A52,0) -> 0 | AH52: =IF(AND(A52>=1,AC52="x"),A52,0) -> 0 | AI52: =IF(AND(A52>=1,AC52=""),U52,0) -> 0 | AJ52: =IF(AND(A52>=1,AC52="x"),-U52,0) -> 0 | AK52: 0 | AL52: 0 | AM52: 0 | AN52: 0 | AO52: =E52 -> 0 | AP52: =Y52*E52 -> 0 | AQ52: =AG52+AK52+AO52 -> 0 | AR52: =AH52+AL52 -> 0 | AS52: =AQ52+AR52 -> 0 | AT52: =AI52+AM52+AP52 -> 0 | AU52: =AJ52+AN52 -> 0 | AV52: Spring 2019 | AX52: 2019 | AZ52: E | BD52: 14 | BF52: 9.99 | BH52: Amicus Ink | BJ52: Not Quizzable | BL52: Fiction | BN52: English | BP52: Board Book | BR52: 14 | BX52: 4 - 8 | BZ52: J. Patrick Lewis & Leigh Lewis
A53: =A50 -> 0 | C53: =C50 -> 0 | E53: =E50 -> 0 | G53: 9781681525679 | I53: 9781681525037 | K53: Who is Making a Mess? | O53: Amicus Ink Board Books | S53: Amicus | U53: 14.3 | W53: 9.99 | Y53: =W53+5 -> 14.99 | AA53: =IF(AC53=FALSE,AT53,0) -> 0 | AG53: =IF(AND(A53>=1,AC53=""),A53,0) -> 0 | AH53: =IF(AND(A53>=1,AC53="x"),A53,0) -> 0 | AI53: =IF(AND(A53>=1,AC53=""),U53,0) -> 0 | AJ53: =IF(AND(A53>=1,AC53="x"),-U53,0) -> 0 | AK53: 0 | AL53: 0 | AM53: 0 | AN53: 0 | AO53: =E53 -> 0 | AP53: =Y53*E53 -> 0 | AQ53: =AG53+AK53+AO53 -> 0 | AR53: =AH53+AL53 -> 0 | AS53: =AQ53+AR53 -> 0 | AT53: =AI53+AM53+AP53 -> 0 | AU53: =AJ53+AN53 -> 0 | AV53: Spring 2020 | AX53: 2020 | AZ53: E | BB53: KR | BD53: 14 | BF53: 9.99 | BH53: Amicus Ink | BJ53: Not Quizzable | BL53: Fiction | BN53: English | BP53: Board Book | BR53: 20 | BX53: 4 - 8 | BZ53: Maria D’Haene
K55: Complete Series of 3 | O55: Amicus Ink Board Books - Farm Animals | U55: =SUM(U56:U58) -> 0 | W55: =SUM(W56:W58) -> 23.97 | Y55: =SUM(Y56:Y58) -> 0
C56: =C55 -> 0 | G56: Not Available | I56: 9781681521251 | K56: Cows Moo | O56: Amicus Ink Board Books - Farm Animals | S56: Amicus | U56: 0 | W56: 7.99 | Y56: 0 | AA56: =IF(AC56=FALSE,AT56,0) -> 0 | AG56: =IF(AND(A56>=1,AC56=""),A56,0) -> 0 | AH56: =IF(AND(A56>=1,AC56="x"),A56,0) -> 0 | AI56: =IF(AND(A56>=1,AC56=""),U56,0) -> 0 | AJ56: =IF(AND(A56>=1,AC56="x"),-U56,0) -> 0 | AK56: =IF(AND(C56>=1,AC56=""),C56,0) -> 0 | AL56: =IF(AND(C56>=1,AC56="x"),C56,0) -> 0 | AM56: =IF(AND(C56>=1,AC56=""),W56*C56,0) -> 0 | AN56: =IF(AND(C56>=1,AC56="x"),-W56*C56,0) -> 0 | AO56: =E56 -> 0 | AP56: =Y56*E56 -> 0 | AQ56: =AG56+AK56+AO56 -> 0 | AR56: =AH56+AL56 -> 0 | AS56: =AQ56+AR56 -> 0 | AT56: =AI56+AM56+AP56 -> 0 | AU56: =AJ56+AN56 -> 0 | AV56: Fall 2016 | AX56: 2017 | AZ56: 636.2 | BD56: 14 | BF56: 7.99 | BH56: Amicus Ink | BJ56: Not Quizzable | BL56: Animals | BN56: English | BP56: Board Book | BR56: 14 | BX56: PreK - 1 | BZ56: Rebecca Glaser
C57: =C55 -> 0 | G57: Not Available | I57: 9781681521275 | K57: Ducks Quack | O57: Amicus Ink Board Books - Farm Animals | S57: Amicus | U57: 0 | W57: 7.99 | Y57: 0 | AA57: =IF(AC57=FALSE,AT57,0) -> 0 | AG57: =IF(AND(A57>=1,AC57=""),A57,0) -> 0 | AH57: =IF(AND(A57>=1,AC57="x"),A57,0) -> 0 | AI57: =IF(AND(A57>=1,AC57=""),U57,0) -> 0 | AJ57: =IF(AND(A57>=1,AC57="x"),-U57,0) -> 0 | AK57: 0 | AL57: 0 | AM57: 0 | AN57: 0 | AO57: =E57 -> 0 | AP57: =Y57*E57 -> 0 | AQ57: =AG57+AK57+AO57 -> 0 | AR57: =AH57+AL57 -> 0 | AS57: =AQ57+AR57 -> 0 | AT57: =AI57+AM57+AP57 -> 0 | AU57: =AJ57+AN57 -> 0 | AV57: Fall 2016 | AX57: 2017 | AZ57: 636.5/97 | BD57: 14 | BF57: 7.99 | BH57: Amicus Ink | BJ57: Not Quizzable | BL57: Animals | BN57: English | BP57: Board Book | BR57: 14 | BX57: PreK - 1 | BZ57: Rebecca Glaser
C58: =C55 -> 0 | G58: Not Available | I58: 9781681521282 | K58: Pigs Oink | O58: Amicus Ink Board Books - Farm Animals | S58: Amicus | U58: 0 | W58: 7.99 | Y58: 0 | AA58: =IF(AC58=FALSE,AT58,0) -> 0 | AG58: =IF(AND(A58>=1,AC58=""),A58,0) -> 0 | AH58: =IF(AND(A58>=1,AC58="x"),A58,0) -> 0 | AI58: =IF(AND(A58>=1,AC58=""),U58,0) -> 0 | AJ58: =IF(AND(A58>=1,AC58="x"),-U58,0) -> 0 | AK58: 0 | AL58: 0 | AM58: 0 | AN58: 0 | AO58: =E58 -> 0 | AP58: =Y58*E58 -> 0 | AQ58: =AG58+AK58+AO58 -> 0 | AR58: =AH58+AL58 -> 0 | AS58: =AQ58+AR58 -> 0 | AT58: =AI58+AM58+AP58 -> 0 | AU58: =AJ58+AN58 -> 0 | AV58: Fall 2016 | AX58: 2017 | AZ58: 636.1 | BD58: 14 | BF58: 7.99 | BH58: Amicus Ink | BJ58: Not Quizzable | BL58: Animals | BN58: English | BP58: Board Book | BR58: 14 | BX58: PreK - 1 | BZ58: Rebecca Glaser
K60: Complete Series of 4 | O60: Amicus Ink Board Books - Pets | U60: =SUM(U61:U64) -> 0 | W60: =SUM(W61:W64) -> 31.96 | Y60: =SUM(Y61:Y64) -> 0
C61: =C60 -> 0 | G61: Not Available | I61: 9781681521992 | K61: Bunnies Hop | O61: Amicus Ink Board Books - Pets | S61: Amicus | U61: 0 | W61: 7.99 | Y61: 0 | AA61: =IF(AC61=FALSE,AT61,0) -> 0 | AG61: =IF(AND(A61>=1,AC61=""),A61,0) -> 0 | AH61: =IF(AND(A61>=1,AC61="x"),A61,0) -> 0 | AI61: =IF(AND(A61>=1,AC61=""),U61,0) -> 0 | AJ61: =IF(AND(A61>=1,AC61="x"),-U61,0) -> 0 | AK61: =IF(AND(C61>=1,AC61=""),C61,0) -> 0 | AL61: =IF(AND(C61>=1,AC61="x"),C61,0) -> 0 | AM61: =IF(AND(C61>=1,AC61=""),W61*C61,0) -> 0 | AN61: =IF(AND(C61>=1,AC61="x"),-W61*C61,0) -> 0 | AO61: =E61 -> 0 | AP61: =Y61*E61 -> 0 | AQ61: =AG61+AK61+AO61 -> 0 | AR61: =AH61+AL61 -> 0 | AS61: =AQ61+AR61 -> 0 | AT61: =AI61+AM61+AP61 -> 0 | AU61: =AJ61+AN61 -> 0 | AV61: Fall 2017 | AX61: 2018 | AZ61: 636.932 | BD61: 14 | BF61: 7.99 | BH61: Amicus Ink | BJ61: Not Quizzable | BL61: Animals | BN61: English | BP61: Board Book | BR61: 14 | BX61: PreK - 1 | BZ61: Rebecca Glaser
C62: =C60 -> 0 | G62: Not Available | I62: 9781681521985 | K62: Fish Swim | O62: Amicus Ink Board Books - Pets | S62: Amicus | U62: 0 | W62: 7.99 | Y62: 0 | AA62: =IF(AC62=FALSE,AT62,0) -> 0 | AG62: =IF(AND(A62>=1,AC62=""),A62,0) -> 0 | AH62: =IF(AND(A62>=1,AC62="x"),A62,0) -> 0 | AI62: =IF(AND(A62>=1,AC62=""),U62,0) -> 0 | AJ62: =IF(AND(A62>=1,AC62="x"),-U62,0) -> 0 | AK62: 0 | AL62: 0 | AM62: 0 | AN62: 0 | AO62: =E62 -> 0 | AP62: =Y62*E62 -> 0 | AQ62: =AG62+AK62+AO62 -> 0 | AR62: =AH62+AL62 -> 0 | AS62: =AQ62+AR62 -> 0 | AT62: =AI62+AM62+AP62 -> 0 | AU62: =AJ62+AN62 -> 0 | AV62: Fall 2017 | AX62: 2018 | AZ62: 639.34 | BD62: 14 | BF62: 7.99 | BH62: Amicus Ink | BJ62: Not Quizzable | BL62: Animals | BN62: English | BP62: Board Book | BR62: 14 | BX62: PreK - 1 | BZ62: Rebecca Glaser
C63: =C60 -> 0 | G63: Not Available | I63: 9781681521978 | K63: Kittens Pounce | O63: Amicus Ink Board Books - Pets | S63: Amicus | U63: 0 | W63: 7.99 | Y63: 0 | AA63: =IF(AC63=FALSE,AT63,0) -> 0 | AG63: =IF(AND(A63>=1,AC63=""),A63,0) -> 0 | AH63: =IF(AND(A63>=1,AC63="x"),A63,0) -> 0 | AI63: =IF(AND(A63>=1,AC63=""),U63,0) -> 0 | AJ63: =IF(AND(A63>=1,AC63="x"),-U63,0) -> 0 | AK63: 0 | AL63: 0 | AM63: 0 | AN63: 0 | AO63: =E63 -> 0 | AP63: =Y63*E63 -> 0 | AQ63: =AG63+AK63+AO63 -> 0 | AR63: =AH63+AL63 -> 0 | AS63: =AQ63+AR63 -> 0 | AT63: =AI63+AM63+AP63 -> 0 | AU63: =AJ63+AN63 -> 0 | AV63: Fall 2017 | AX63: 2018 | AZ63: 636.8/07 | BD63: 14 | BF63: 7.99 | BH63: Amicus Ink | BJ63: Not Quizzable | BL63: Animals | BN63: English | BP63: Board Book | BR63: 14 | BX63: PreK - 1 | BZ63: Rebecca Glaser
C64: =C60 -> 0 | G64: Not Available | I64: 9781681521961 | K64: Puppies Chase | O64: Amicus Ink Board Books - Pets | S64: Amicus | U64: 0 | W64: 7.99 | Y64: 0 | AA64: =IF(AC64=FALSE,AT64,0) -> 0 | AG64: =IF(AND(A64>=1,AC64=""),A64,0) -> 0 | AH64: =IF(AND(A64>=1,AC64="x"),A64,0) -> 0 | AI64: =IF(AND(A64>=1,AC64=""),U64,0) -> 0 | AJ64: =IF(AND(A64>=1,AC64="x"),-U64,0) -> 0 | AK64: 0 | AL64: 0 | AM64: 0 | AN64: 0 | AO64: =E64 -> 0 | AP64: =Y64*E64 -> 0 | AQ64: =AG64+AK64+AO64 -> 0 | AR64: =AH64+AL64 -> 0 | AS64: =AQ64+AR64 -> 0 | AT64: =AI64+AM64+AP64 -> 0 | AU64: =AJ64+AN64 -> 0 | AV64: Fall 2017 | AX64: 2018 | AZ64: 636.7/07 | BD64: 14 | BF64: 7.99 | BH64: Amicus Ink | BJ64: Not Quizzable | BL64: Animals | BN64: English | BP64: Board Book | BR64: 14 | BX64: PreK - 1 | BZ64: Rebecca Glaser
K66: Complete Series of 7 | O66: Amicus Ink Board Books - Vehicles | U66: =SUM(U67:U73) -> 0 | W66: =SUM(W67:W73) -> 55.93 | Y66: =SUM(Y67:Y73) -> 0
C67: =C66 -> 0 | G67: Not Available | I67: 9781681522432 | K67: Boats Float | O67: Amicus Ink Board Books - Vehicles | S67: Amicus | U67: 0 | W67: 7.99 | Y67: 0 | AA67: =IF(AC67=FALSE,AT67,0) -> 0 | AG67: =IF(AND(A67>=1,AC67=""),A67,0) -> 0 | AH67: =IF(AND(A67>=1,AC67="x"),A67,0) -> 0 | AI67: =IF(AND(A67>=1,AC67=""),U67,0) -> 0 | AJ67: =IF(AND(A67>=1,AC67="x"),-U67,0) -> 0 | AK67: =IF(AND(C67>=1,AC67=""),C67,0) -> 0 | AL67: =IF(AND(C67>=1,AC67="x"),C67,0) -> 0 | AM67: =IF(AND(C67>=1,AC67=""),W67*C67,0) -> 0 | AN67: =IF(AND(C67>=1,AC67="x"),-W67*C67,0) -> 0 | AO67: =E67 -> 0 | AP67: =Y67*E67 -> 0 | AQ67: =AG67+AK67+AO67 -> 0 | AR67: =AH67+AL67 -> 0 | AS67: =AQ67+AR67 -> 0 | AT67: =AI67+AM67+AP67 -> 0 | AU67: =AJ67+AN67 -> 0 | AV67: Spring 2018 | AX67: 2018 | AZ67: 623.82 | BD67: 14 | BF67: 7.99 | BH67: Amicus Ink | BJ67: Not Quizzable | BL67: Transportation | BN67: English | BP67: Board Book | BR67: 14 | BX67: PreK - 1 | BZ67: Rebecca Glaser
C68: =C66 -> 0 | G68: Not Available | I68: 9781681521213 | K68: Cars Zoom | O68: Amicus Ink Board Books - Vehicles | S68: Amicus | U68: 0 | W68: 7.99 | Y68: 0 | AA68: 0 | AG68: 0 | AH68: 0 | AI68: 0 | AJ68: 0 | AK68: 0 | AL68: 0 | AM68: 0 | AN68: 0 | AO68: 0 | AP68: 0 | AQ68: 0 | AR68: 0 | AS68: 0 | AT68: 0 | AU68: 0 | AV68: Fall 2016 | AX68: 2017 | AZ68: 629.222 | BD68: 14 | BF68: 7.99 | BH68: Amicus Ink | BJ68: Not Quizzable | BL68: Transportation | BN68: English | BP68: Board Book | BR68: 14 | BX68: PreK - 1 | BZ68: Rebecca Glaser
C69: =C66 -> 0 | G69: Not Available | I69: 9781681522401 | K69: Fire Trucks Rescue | O69: Amicus Ink Board Books - Vehicles | S69: Amicus | U69: 0 | W69: 7.99 | Y69: 0 | AA69: 0 | AG69: 0 | AH69: 0 | AI69: 0 | AJ69: 0 | AK69: 0 | AL69: 0 | AM69: 0 | AN69: 0 | AO69: 0 | AP69: 0 | AQ69: 0 | AR69: 0 | AS69: 0 | AT69: 0 | AU69: 0 | AV69: Spring 2018 | AX69: 2018 | AZ69: 628.9/259 | BD69: 14 | BF69: 7.99 | BH69: Amicus Ink | BJ69: Not Quizzable | BL69: Transportation | BN69: English | BP69: Board Book | BR69: 14 | BX69: PreK - 1 | BZ69: Rebecca Glaser
C70: =C66 -> 0 | G70: Not Available | I70: 9781681521220 | K70: Planes Soar | O70: Amicus Ink Board Books - Vehicles | S70: Amicus | U70: 0 | W70: 7.99 | Y70: 0 | AA70: 0 | AG70: 0 | AH70: 0 | AI70: 0 | AJ70: 0 | AK70: 0 | AL70: 0 | AM70: 0 | AN70: 0 | AO70: 0 | AP70: 0 | AQ70: 0 | AR70: 0 | AS70: 0 | AT70: 0 | AU70: 0 | AV70: Fall 2016 | AX70: 2017 | AZ70: 629.133/34 | BD70: 14 | BF70: 7.99 | BH70: Amicus Ink | BJ70: Not Quizzable | BL70: Transportation | BN70: English | BP70: Board Book | BR70: 14 | BX70: PreK - 1 | BZ70: Rebecca Glaser
C71: =C66 -> 0 | G71: Not Available | I71: 9781681521237 | K71: Tractors Pull | O71: Amicus Ink Board Books - Vehicles | S71: Amicus | U71: 0 | W71: 7.99 | Y71: 0 | AA71: 0 | AG71: 0 | AH71: 0 | AI71: 0 | AJ71: 0 | AK71: 0 | AL71: 0 | AM71: 0 | AN71: 0 | AO71: 0 | AP71: 0 | AQ71: 0 | AR71: 0 | AS71: 0 | AT71: 0 | AU71: 0 | AV71: Spring 2018 | AX71: 2018 | AZ71: 625.2 | BD71: 14 | BF71: 7.99 | BH71: Amicus Ink | BJ71: Not Quizzable | BL71: Transportation | BN71: English | BP71: Board Book | BR71: 14 | BX71: PreK - 1 | BZ71: Rebecca Glaser
C72: =C66 -> 0 | G72: Not Available | I72: 9781681522425 | K72: Trains Chug | O72: Amicus Ink Board Books - Vehicles | S72: Amicus | U72: 0 | W72: 7.99 | Y72: 0 | AA72: 0 | AG72: 0 | AH72: 0 | AI72: 0 | AJ72: 0 | AK72: 0 | AL72: 0 | AM72: 0 | AN72: 0 | AO72: 0 | AP72: 0 | AQ72: 0 | AR72: 0 | AS72: 0 | AT72: 0 | AU72: 0 | AV72: Spring 2018 | AX72: 2018 | AZ72: 625.2 | BD72: 14 | BF72: 7.99 | BH72: Amicus Ink | BJ72: Not Quizzable | BL72: Transportation | BN72: English | BP72: Board Book | BR72: 14 | BX72: PreK - 1 | BZ72: Rebecca Glaser
C73: =C66 -> 0 | G73: Not Available | I73: 9781681521244 | K73: Trucks Haul | O73: Amicus Ink Board Books - Vehicles | S73: Amicus | U73: 0 | W73: 7.99 | Y73: 0 | AA73: 0 | AG73: 0 | AH73: 0 | AI73: 0 | AJ73: 0 | AK73: 0 | AL73: 0 | AM73: 0 | AN73: 0 | AO73: 0 | AP73: 0 | AQ73: 0 | AR73: 0 | AS73: 0 | AT73: 0 | AU73: 0 | AV73: Fall 2016 | AX73: 2017 | AZ73: 629.224 | BD73: 14 | BF73: 7.99 | BH73: Amicus Ink | BJ73: Not Quizzable | BL73: Transportation | BN73: English | BP73: Board Book | BR73: 14 | BX73: PreK - 1 | BZ73: Rebecca Glaser
K75: Complete Series of 6 | O75: Amicus Ink Board Books - Wild Animals | U75: =SUM(U76:U81) -> 0 | W75: =SUM(W76:W81) -> 47.94 | Y75: =SUM(Y76:Y81) -> 0
C76: =C75 -> 0 | G76: Not Available | I76: 9781681520674 | K76: Dolphins Play | O76: Amicus Ink Board Books - Wild Animals | S76: Amicus | U76: 0 | W76: 7.99 | Y76: 0 | AA76: =IF(AC76=FALSE,AT76,0) -> 0 | AG76: =IF(AND(A76>=1,AC76=""),A76,0) -> 0 | AH76: =IF(AND(A76>=1,AC76="x"),A76,0) -> 0 | AI76: =IF(AND(A76>=1,AC76=""),U76,0) -> 0 | AJ76: =IF(AND(A76>=1,AC76="x"),-U76,0) -> 0 | AK76: =IF(AND(C76>=1,AC76=""),C76,0) -> 0 | AL76: =IF(AND(C76>=1,AC76="x"),C76,0) -> 0 | AM76: =IF(AND(C76>=1,AC76=""),W76*C76,0) -> 0 | AN76: =IF(AND(C76>=1,AC76="x"),-W76*C76,0) -> 0 | AO76: =E76 -> 0 | AP76: =Y76*E76 -> 0 | AQ76: =AG76+AK76+AO76 -> 0 | AR76: =AH76+AL76 -> 0 | AS76: =AQ76+AR76 -> 0 | AT76: =AI76+AM76+AP76 -> 0 | AU76: =AJ76+AN76 -> 0 | AV76: Spring 2016 | AX76: 2016 | AZ76: 599.53 | BD76: 14 | BF76: 7.99 | BH76: Amicus Ink | BJ76: Not Quizzable | BL76: Animals | BN76: English | BP76: Board Book | BR76: 14 | BX76: PreK - 1 | BZ76: Rebecca Glaser
C77: =C75 -> 0 | G77: Not Available | I77: 9781681520681 | K77: Elephants Spray | O77: Amicus Ink Board Books - Wild Animals | S77: Amicus | U77: 0 | W77: 7.99 | Y77: 0 | AA77: 0 | AG77: 0 | AH77: 0 | AI77: 0 | AJ77: 0 | AK77: 0 | AL77: 0 | AM77: 0 | AN77: 0 | AO77: 0 | AP77: 0 | AQ77: 0 | AR77: 0 | AS77: 0 | AT77: 0 | AU77: 0 | AV77: Spring 2016 | AX77: 2016 | AZ77: 599.67 | BD77: 14 | BF77: 7.99 | BH77: Amicus Ink | BJ77: Not Quizzable | BL77: Animals | BN77: English | BP77: Board Book | BR77: 14 | BX77: PreK - 1 | BZ77: Rebecca Glaser
C78: =C75 -> 0 | G78: Not Available | I78: 9781681520698 | K78: Giraffes Stretch | O78: Amicus Ink Board Books - Wild Animals | S78: Amicus | U78: 0 | W78: 7.99 | Y78: 0 | AA78: 0 | AG78: 0 | AH78: 0 | AI78: 0 | AJ78: 0 | AK78: 0 | AL78: 0 | AM78: 0 | AN78: 0 | AO78: 0 | AP78: 0 | AQ78: 0 | AR78: 0 | AS78: 0 | AT78: 0 | AU78: 0 | AV78: Spring 2016 | AX78: 2016 | AZ78: 599.638 | BD78: 14 | BF78: 7.99 | BH78: Amicus Ink | BJ78: Not Quizzable | BL78: Animals | BN78: English | BP78: Board Book | BR78: 14 | BX78: PreK - 1 | BZ78: Rebecca Glaser
C79: =C75 -> 0 | G79: Not Available | I79: 9781681520711 | K79: Lions Roar | O79: Amicus Ink Board Books - Wild Animals | S79: Amicus | U79: 0 | W79: 7.99 | Y79: 0 | AA79: 0 | AG79: 0 | AH79: 0 | AI79: 0 | AJ79: 0 | AK79: 0 | AL79: 0 | AM79: 0 | AN79: 0 | AO79: 0 | AP79: 0 | AQ79: 0 | AR79: 0 | AS79: 0 | AT79: 0 | AU79: 0 | AV79: Spring 2016 | AX79: 2016 | AZ79: 599.75/5 | BD79: 14 | BF79: 7.99 | BH79: Amicus Ink | BJ79: Not Quizzable | BL79: Animals | BN79: English | BP79: Board Book | BR79: 14 | BX79: PreK - 1 | BZ79: Rebecca Glaser
C80: =C75 -> 0 | G80: Not Available | I80: 9781681520728 | K80: Monkeys Swing | O80: Amicus Ink Board Books - Wild Animals | S80: Amicus | U80: 0 | W80: 7.99 | Y80: 0 | AA80: 0 | AG80: 0 | AH80: 0 | AI80: 0 | AJ80: 0 | AK80: 0 | AL80: 0 | AM80: 0 | AN80: 0 | AO80: 0 | AP80: 0 | AQ80: 0 | AR80: 0 | AS80: 0 | AT80: 0 | AU80: 0 | AV80: Spring 2016 | AX80: 2016 | AZ80: 599.8 | BD80: 14 | BF80: 7.99 | BH80: Amicus Ink | BJ80: Not Quizzable | BL80: Animals | BN80: English | BP80: Board Book | BR80: 14 | BX80: PreK - 1 | BZ80: Rebecca Glaser
C81: =C75 -> 0 | G81: Not Available | I81: 9781681520704 | K81: Penguins Waddle | O81: Amicus Ink Board Books - Wild Animals | S81: Amicus | U81: 0 | W81: 7.99 | Y81: 0 | AA81: 0 | AG81: 0 | AH81: 0 | AI81: 0 | AJ81: 0 | AK81: 0 | AL81: 0 | AM81: 0 | AN81: 0 | AO81: 0 | AP81: 0 | AQ81: 0 | AR81: 0 | AS81: 0 | AT81: 0 | AU81: 0 | AV81: Spring 2016 | AX81: 2016 | AZ81: 599.8 | BD81: 14 | BF81: 7.99 | BH81: Amicus Ink | BJ81: Not Quizzable | BL81: Animals | BN81: English | BP81: Board Book | BR81: 14 | BX81: PreK - 1 | BZ81: Rebecca Glaser
K83: Complete Series of 20 | O83: Amicus Ink Picture Books | U83: =SUM(U84:U103) -> 491.9 | W83: =SUM(W84:W103) -> 361.8 | Y83: 438.81
A84: =A83 -> 0 | C84: =C83 -> 0 | E84: =E83 -> 0 | G84: 9781681525143 | I84: 9781681524085 | K84: Crane & Crane | O84: Amicus Ink Picture Books | S84: Amicus | U84: 25.75 | W84: 17.99 | Y84: =W84+5 -> 22.99 | AA84: =IF(AC84=FALSE,AT84,0) -> 0 | AG84: =IF(AND(A84>=1,AC84=""),A84,0) -> 0 | AH84: =IF(AND(A84>=1,AC84="x"),A84,0) -> 0 | AI84: =IF(AND(A84>=1,AC84=""),U84,0) -> 0 | AJ84: =IF(AND(A84>=1,AC84="x"),-U84,0) -> 0 | AK84: =IF(AND(C84>=1,AC84=""),C84,0) -> 0 | AL84: =IF(AND(C84>=1,AC84="x"),C84,0) -> 0 | AM84: =IF(AND(C84>=1,AC84=""),W84*C84,0) -> 0 | AN84: =IF(AND(C84>=1,AC84="x"),-W84*C84,0) -> 0 | AO84: =E84*2 -> 0 | AP84: =Y84*E84 -> 0 | AQ84: =AG84+AK84+AO84 -> 0 | AR84: =AH84+AL84 -> 0 | AS84: =AQ84+AR84 -> 0 | AT84: =AI84+AM84+AP84 -> 0 | AU84: =AJ84+AN84 -> 0 | AV84: Spring 2019 | AX84: 2019 | AZ84: E | BD84: 8 | BF84: 17.99 | BH84: Amicus Ink | BL84: Fiction | BN84: English | BP84: Hardcover with Jacket | BR84: 32 | BX84: PreK – 2 | BZ84: Linda Joy Singleton
C85: =C83 -> 0 | G85: Not Available | I85: 9781681521930 | K85: Daddy Cuddle | O85: Amicus Ink Picture Books | S85: Amicus | U85: 0 | W85: 17.99 | Y85: 0 | AA85: 0 | AG85: =IF(AND(A85>=1,AC85=""),A85,0) -> 0 | AH85: 0 | AI85: 0 | AJ85: 0 | AK85: 0 | AL85: 0 | AM85: 0 | AN85: 0 | AO85: =E85 -> 0 | AP85: =Y85*E85 -> 0 | AQ85: 0 | AR85: 0 | AS85: =AQ85+AR85 -> 0 | AT85: 0 | AU85: 0 | AV85: Spring 2017 | AX85: 2017 | AZ85: E | BD85: 11 | BF85: 17.99 | BH85: Amicus Ink | BL85: Fiction | BN85: English | BP85: Hardcover with Jacket | BR85: 32 | BX85: PreK – 2 | BZ85: Kate Mayes
A86: =A83 -> 0 | C86: =C83 -> 0 | E86: =E83 -> 0 | G86: 9781681525051 | I86: 9781681525020 | K86: Extraordinary Ordinary Ella | O86: Amicus Ink Picture Books | S86: Amicus | U86: 25.75 | W86: 17.99 | Y86: =W86+5 -> 22.99 | AA86: 0 | AG86: 0 | AH86: 0 | AI86: 0 | AJ86: 0 | AK86: 0 | AL86: 0 | AM86: 0 | AN86: 0 | AO86: 0 | AP86: 0 | AQ86: 0 | AR86: 0 | AS86: 0 | AT86: 0 | AU86: 0 | AV86: Spring 2020 | AX86: 2020 | AZ86: E | BD86: 10 | BF86: 17.99 | BH86: Amicus Ink | BJ86: Not Quizzable | BL86: Fiction | BN86: English | BP86: Hardcover with Jacket | BR86: 32 | BX86: PreK – 2 | BZ86: Amber Hendricks
A87: =A83 -> 0 | C87: =C83 -> 0 | E87: =E83 -> 0 | G87: 9781681527543 | I87: 9781681527536 | K87: Great Cookie Kerfuffle, The | O87: Amicus Ink Picture Books | S87: Amicus | U87: 27.2 | W87: 18.99 | Y87: =W87+5 -> 23.99 | AA87: =IF(AC87=FALSE,AT87,0) -> 0 | AG87: =IF(AND(A87>=1,AC87=""),A87,0) -> 0 | AH87: =IF(AND(A87>=1,AC87="x"),A87,0) -> 0 | AI87: =IF(AND(A87>=1,AC87=""),U87,0) -> 0 | AJ87: =IF(AND(A87>=1,AC87="x"),-U87,0) -> 0 | AK87: =IF(AND(C87>=1,AC87=""),C87,0) -> 0 | AL87: =IF(AND(C87>=1,AC87="x"),C87,0) -> 0 | AM87: =IF(AND(C87>=1,AC87=""),W87*C87,0) -> 0 | AN87: =IF(AND(C87>=1,AC87="x"),-W87*C87,0) -> 0 | AO87: =E87 -> 0 | AP87: =Y87*E87 -> 0 | AQ87: =AG87+AK87+AO87 -> 0 | AR87: =AH87+AL87 -> 0 | AS87: =AQ87+AR87 -> 0 | AT87: =AI87+AM87+AP87 -> 0 | AU87: =AJ87+AN87 -> 0 | AV87: Fall 2022 | AX87: 2023 | AZ87: E | BD87: 5 | BF87: 18.99 | BH87: Amicus Ink | BL87: Fiction | BN87: English | BP87: Hardcover with Jacket | BR87: 32 | BX87: PreK – 2 | BZ87: Jessica Shaw
A88: =A83 -> 0 | C88: =C83 -> 0 | E88: =E83 -> 0 | G88: 9781681525112 | I88: 9781681522395 | K88: Grow | O88: Amicus Ink Picture Books | S88: Amicus | U88: 25.75 | W88: 17.99 | Y88: 22.99 | AA88: 0 | AG88: 0 | AH88: 0 | AI88: 0 | AJ88: 0 | AK88: 0 | AL88: 0 | AM88: 0 | AN88: 0 | AO88: 0 | AP88: 0 | AQ88: 0 | AR88: 0 | AS88: 0 | AT88: 0 | AU88: 0 | AV88: Spring 2018 | AX88: 2018 | AZ88: E | BD88: 11 | BF88: 17.99 | BH88: Amicus Ink | BL88: Fiction | BN88: English | BP88: Hardcover with Jacket | BR88: 32 | BX88: PreK – 2 | BZ88: Cynthia Platt
A89: =A83 -> 0 | C89: =C83 -> 0 | E89: =E83 -> 0 | G89: 9781681525068 | I89: 9781681524047 | K89: I’ve Got Eyes!: Exceptional Eyes of the Animal World | O89: Amicus Ink Picture Books | S89: Amicus | U89: 25.75 | W89: 17.99 | Y89: 22.99 | AA89: 0 | AG89: 0 | AH89: 0 | AI89: 0 | AJ89: 0 | AK89: 0 | AL89: 0 | AM89: 0 | AN89: 0 | AO89: 0 | AP89: 0 | AQ89: 0 | AR89: 0 | AS89: 0 | AT89: 0 | AU89: 0 | AV89: Fall 2018 | AX89: 2018 | AZ89: 591.4/4 | BB89: PW | BD89: 11 | BF89: 17.99 | BH89: Amicus Ink | BL89: Fiction | BN89: English | BP89: Hardcover with Jacket | BR89: 32 | BX89: PreK – 2 | BZ89: Julie Murphy
A90: =A83 -> 0 | C90: =C83 -> 0 | E90: =E83 -> 0 | G90: 9781681525044 | I90: 9781681525013 | K90: I've Got a Tail!: Terrific Tails of the Animal World | O90: Amicus Ink Picture Books | S90: Amicus | U90: 25.75 | W90: 17.99 | Y90: 22.99 | AA90: 0 | AG90: 0 | AH90: 0 | AI90: 0 | AJ90: 0 | AK90: 0 | AL90: 0 | AM90: 0 | AN90: 0 | AO90: 0 | AP90: 0 | AQ90: 0 | AR90: 0 | AS90: 0 | AT90: 0 | AU90: 0 | AV90: Spring 2020 | AX90: 2020 | AZ90: 591.47 | BB90: PW | BD90: 11 | BF90: 17.99 | BH90: Amicus Ink | BJ90: Not Quizzable | BL90: Fiction | BN90: English | BP90: Hardcover with Jacket | BR90: 32 | BX90: PreK – 2 | BZ90: Julie Murphy
A91: =A83 -> 0 | C91: =C83 -> 0 | E91: =E83 -> 0 | G91: 9781681525136 | I91: 9781681521954 | K91: I've Got Feet: Fantastical Feet of the Animal World | O91: Amicus Ink Picture Books | S91: Amicus | U91: 25.75 | W91: 17.99 | Y91: 22.99 | AA91: 0 | AG91: 0 | AH91: 0 | AI91: 0 | AJ91: 0 | AK91: 0 | AL91: 0 | AM91: 0 | AN91: 0 | AO91: 0 | AP91: 0 | AQ91: 0 | AR91: 0 | AS91: 0 | AT91: 0 | AU91: 0 | AV91: Spring 2017 | AX91: 2017 | AZ91: 591.47/9 | BB91: PW | BD91: 11 | BF91: 17.99 | BH91: Amicus Ink | BJ91: 2.7 | BL91: Fiction | BN91: English | BP91: Hardcover with Jacket | BR91: 32 | BX91: PreK – 2 | BZ91: Julie Murphy
A92: =A83 -> 0 | C92: =C83 -> 0 | E92: =E83 -> 0 | G92: 9781681525105 | I92: 9781681522029 | K92: Just My Style | O92: Amicus Ink Picture Books | S92: Amicus | U92: 25.75 | W92: 17.99 | Y92: 22.99 | AA92: 0 | AG92: 0 | AH92: 0 | AI92: 0 | AJ92: 0 | AK92: 0 | AL92: 0 | AM92: 0 | AN92: 0 | AO92: 0 | AP92: 0 | AQ92: 0 | AR92: 0 | AS92: 0 | AT92: 0 | AU92: 0 | AV92: Spring 2018 | AX92: 2018 | AZ92: E | BD92: 11 | BF92: 17.99 | BH92: Amicus Ink | BL92: Fiction | BN92: English | BP92: Hardcover with Jacket | BR92: 32 | BX92: PreK – 2 | BZ92: Diane Z. Shore & Jessica Alexander
A93: =A83 -> 0 | C93: =C83 -> 0 | E93: =E83 -> 0 | G93: 9781681526553 | I93: 9781681526546 | K93: Little Round Panda on the Big Blue Earth, A | O93: Amicus Ink Picture Books | S93: Amicus | U93: 27.2 | W93: 18.99 | Y93: 23.99 | AA93: 0 | AG93: 0 | AH93: 0 | AI93: 0 | AJ93: 0 | AK93: 0 | AL93: 0 | AM93: 0 | AN93: 0 | AO93: 0 | AP93: 0 | AQ93: 0 | AR93: 0 | AS93: 0 | AT93: 0 | AU93: 0 | AV93: Fall 2021 | AX93: 2021 | AZ93: 599.789 | BB93: SLJ | BD93: 9 | BF93: 18.99 | BH93: Amicus Ink | BL93: Fiction | BN93: English | BP93: Hardcover with Jacket | BR93: 32 | BX93: PreK – 2 | BZ93: Tory Christie
A94: =A83 -> 0 | C94: =C83 -> 0 | E94: =E83 -> 0 | G94: 9781681525181 | I94: 9781681522371 | K94: Mighty Steam Engine, The | O94: Amicus Ink Picture Books | S94: Amicus | U94: 25.75 | W94: 17.99 | Y94: 22.99 | AA94: 0 | AG94: 0 | AH94: 0 | AI94: 0 | AJ94: 0 | AK94: 0 | AL94: 0 | AM94: 0 | AN94: 0 | AO94: 0 | AP94: 0 | AQ94: 0 | AR94: 0 | AS94: 0 | AT94: 0 | AU94: 0 | AV94: Fall 2019 | AX94: 2019 | AZ94: E | BB94: SLJ | BD94: 10 | BF94: 17.99 | BH94: Amicus Ink | BJ94: 4.9 | BL94: Fiction | BN94: English | BP94: Hardcover with Jacket | BR94: 32 | BX94: PreK – 2 | BZ94: Yvonne Ng
A95: =A83 -> 0 | C95: =C83 -> 0 | E95: =E83 -> 0 | G95: 9781681525730 | I95: 9781681525723 | K95: My Room Is a Zoo! | O95: Amicus Ink Picture Books | S95: Amicus | U95: 27.2 | W95: 18.99 | Y95: 23.99 | AA95: 0 | AG95: 0 | AH95: 0 | AI95: 0 | AJ95: 0 | AK95: 0 | AL95: 0 | AM95: 0 | AN95: 0 | AO95: 0 | AP95: 0 | AQ95: 0 | AR95: 0 | AS95: 0 | AT95: 0 | AU95: 0 | AV95: Fall 2021 | AX95: 2021 | AZ95: E | BD95: 8 | BF95: 18.99 | BH95: Amicus Ink | BL95: Fiction | BN95: English | BP95: Hardcover with Jacket | BR95: 32 | BX95: PreK – 2 | BZ95: Jerry Ruff
A96: =A83 -> 0 | C96: =C83 -> 0 | E96: =E83 -> 0 | G96: 9781681525198 | I96: 9781681524153 | K96: No Hugs! | O96: Amicus Ink Picture Books | S96: Amicus | U96: 24.3 | W96: 16.99 | Y96: 21.99 | AA96: 0 | AG96: 0 | AH96: 0 | AI96: 0 | AJ96: 0 | AK96: 0 | AL96: 0 | AM96: 0 | AN96: 0 | AO96: 0 | AP96: 0 | AQ96: 0 | AR96: 0 | AS96: 0 | AT96: 0 | AU96: 0 | AV96: Fall 2019 | AX96: 2019 | AZ96: E | BB96: SLJ | BD96: 10 | BF96: 16.99 | BH96: Amicus Ink | BL96: Fiction | BN96: English | BP96: Hardcover with Jacket | BR96: 24 | BX96: PreK – 2 | BZ96: Deirdre A. Prischmann
A97: =A83 -> 0 | C97: =C83 -> 0 | E97: =E83 -> 0 | G97: 9781681527468 | I97: 9781681527451 | K97: One Blue Gnu | O97: Amicus Ink Picture Books | S97: Amicus | U97: 25.7 | W97: 17.99 | Y97: 22.99 | AA97: 0 | AG97: 0 | AH97: 0 | AI97: 0 | AJ97: 0 | AK97: 0 | AL97: 0 | AM97: 0 | AN97: 0 | AO97: 0 | AP97: 0 | AQ97: 0 | AR97: 0 | AS97: 0 | AT97: 0 | AU97: 0 | AV97: Spring 2022 | AX97: 2022 | AZ97: 590 | BB97: BL | BD97: 8 | BF97: 17.99 | BH97: Amicus Ink | BL97: Fiction | BN97: English | BP97: Hardcover with Jacket | BR97: 32 | BX97: PreK – 2 | BZ97: Danna Smith
A98: =A83 -> 0 | C98: =C83 -> 0 | E98: =E83 -> 0 | G98: 9781681527567 | I98: 9781681527550 | K98: Peas in a Pod | O98: Amicus Ink Picture Books | S98: Amicus | U98: 25.7 | W98: 17.99 | Y98: =W98+5 -> 22.99 | AA98: =IF(AC98=FALSE,AT98,0) -> 0 | AG98: =IF(AND(A98>=1,AC98=""),A98,0) -> 0 | AH98: =IF(AND(A98>=1,AC98="x"),A98,0) -> 0 | AI98: =IF(AND(A98>=1,AC98=""),U98,0) -> 0 | AJ98: =IF(AND(A98>=1,AC98="x"),-U98,0) -> 0 | AK98: =IF(AND(C98>=1,AC98=""),C98,0) -> 0 | AL98: =IF(AND(C98>=1,AC98="x"),C98,0) -> 0 | AM98: =IF(AND(C98>=1,AC98=""),W98*C98,0) -> 0 | AN98: =IF(AND(C98>=1,AC98="x"),-W98*C98,0) -> 0 | AO98: =E98 -> 0 | AP98: =Y98*E98 -> 0 | AQ98: =AG98+AK98+AO98 -> 0 | AR98: =AH98+AL98 -> 0 | AS98: =AQ98+AR98 -> 0 | AT98: =AI98+AM98+AP98 -> 0 | AU98: =AJ98+AN98 -> 0 | AV98: Fall 2022 | AX98: 2023 | AZ98: E | BD98: 7 | BF98: 17.99 | BH98: Amicus Ink | BL98: Fiction | BN98: English | BP98: Hardcover with Jacket | BR98: 32 | BX98: PreK – 2 | BZ98: Rachel Noble
A99: =A83 -> 0 | C99: =C83 -> 0 | E99: =E83 -> 0 | G99: 9781681527482 | I99: 9781681527475 | K99: Sun & Son | O99: Amicus Ink Picture Books | S99: Amicus | U99: 25.7 | W99: 17.99 | Y99: 22.99 | AA99: 0 | AG99: 0 | AH99: 0 | AI99: 0 | AJ99: 0 | AK99: 0 | AL99: 0 | AM99: 0 | AN99: 0 | AO99: 0 | AP99: 0 | AQ99: 0 | AR99: 0 | AS99: 0 | AT99: 0 | AU99: 0 | AV99: Spring 2022 | AX99: 2022 | AZ99: E | BD99: 8 | BF99: 17.99 | BH99: Amicus Ink | BL99: Fiction | BN99: English | BP99: Hardcover with Jacket | BR99: 32 | BX99: PreK – 2 | BZ99: Linda Joy Singleton
A100: =A83 -> 0 | C100: =C83 -> 0 | E100: =E83 -> 0 | G100: 9781681526560 | I100: 9781681522388 | K100: They're Tearing Up Mulberry Street | O100: Amicus Ink Picture Books | S100: Amicus | U100: 25.7 | W100: 17.99 | Y100: 22.99 | AA100: 0 | AG100: 0 | AH100: 0 | AI100: 0 | AJ100: 0 | AK100: 0 | AL100: 0 | AM100: 0 | AN100: 0 | AO100: 0 | AP100: 0 | AQ100: 0 | AR100: 0 | AS100: 0 | AT100: 0 | AU100: 0 | AV100: Fall 2021 | AX100: 2021 | AZ100: 625.8/5 | BD100: 10 | BF100: 17.99 | BH100: Amicus Ink | BJ100: 4.3 | BL100: Fiction | BN100: English | BP100: Hardcover with Jacket | BR100: 24 | BX100: PreK – 2 | BZ100: Yvonne Ng
A101: =A83 -> 0 | C101: =C83 -> 0 | E101: =E83 -> 0 | G101: 9781681525204 | I101: 9781681524986 | K101: Tiny Brown Monkey on the Big Blue Earth, A | O101: Amicus Ink Picture Books | S101: Amicus | U101: 25.75 | W101: 17.99 | Y101: 22.99 | AA101: 0 | AG101: 0 | AH101: 0 | AI101: 0 | AJ101: 0 | AK101: 0 | AL101: 0 | AM101: 0 | AN101: 0 | AO101: 0 | AP101: 0 | AQ101: 0 | AR101: 0 | AS101: 0 | AT101: 0 | AU101: 0 | AV101: Fall 2019 | AX101: 2019 | AZ101: E | BB101: SLJ | BD101: 9 | BF101: 17.99 | BH101: Amicus Ink | BJ101: 2.8 | BL101: Fiction | BN101: English | BP101: Hardcover with Jacket | BR101: 32 | BX101: PreK – 2 | BZ101: Tory Christie
A102: =A83 -> 0 | C102: =C83 -> 0 | E102: =E83 -> 0 | G102: 9781681525075 | I102: 9781681524054 | K102: Twinkle, Twinkle, Little Lamb | O102: Amicus Ink Picture Books | S102: Amicus | U102: 25.75 | W102: 17.99 | Y102: 22.99 | AA102: 0 | AG102: 0 | AH102: 0 | AI102: 0 | AJ102: 0 | AK102: 0 | AL102: 0 | AM102: 0 | AN102: 0 | AO102: 0 | AP102: 0 | AQ102: 0 | AR102: 0 | AS102: 0 | AT102: 0 | AU102: 0 | AV102: Fall 2018 | AX102: 2018 | AZ102: E | BD102: 11 | BF102: 17.99 | BH102: Amicus Ink | BL102: Fiction | BN102: English | BP102: Hardcover with Jacket | BR102: 32 | BX102: PreK – 2 | BZ102: Bridget Heos
A103: =A83 -> 0 | C103: =C83 -> 0 | E103: =E83 -> 0 | G103: 9781681526584 | I103: 9781681526577 | K103: Who Knew? Under the Apple Tree | O103: Amicus Ink Picture Books | S103: Amicus | U103: 25.7 | W103: 17.99 | Y103: 22.99 | AA103: 0 | AG103: 0 | AH103: 0 | AI103: 0 | AJ103: 0 | AK103: 0 | AL103: 0 | AM103: 0 | AN103: 0 | AO103: 0 | AP103: 0 | AQ103: 0 | AR103: 0 | AS103: 0 | AT103: 0 | AU103: 0 | AV103: Fall 2021 | AX103: 2021 | AZ103: 513.2/1 | BD103: 8 | BF103: 17.99 | BH103: Amicus Ink | BJ103: 2.9 | BL103: Fiction | BN103: English | BP103: Hardcover with Jacket | BR103: 24 | BX103: PreK – 2 | BZ103: Laurie Lazzaro Knowlton
K105: Complete Series of 3 | O105: Ancient Wonders | U105: =SUM(U106:U108) -> 0 | W105: =SUM(W106:W108) -> 74.85 | Y105: =SUM(Y106:Y108) -> 0
C106: =C105 -> 0 | G106: Not Available | I106: 9781607534662 | K106: Egyptian Pyramids | O106: Ancient Wonders | S106: Amicus | U106: 0 | W106: 24.95 | Y106: 0 | AA106: =IF(AC106=FALSE,AT106,0) -> 0 | AG106: =IF(AND(A106>=1,AC106=""),A106,0) -> 0 | AH106: =IF(AND(A106>=1,AC106="x"),A106,0) -> 0 | AI106: =IF(AND(A106>=1,AC106=""),U106,0) -> 0 | AJ106: =IF(AND(A106>=1,AC106="x"),-U106,0) -> 0 | AK106: =IF(AND(C106>=1,AC106=""),C106,0) -> 0 | AL106: =IF(AND(C106>=1,AC106="x"),C106,0) -> 0 | AM106: =IF(AND(C106>=1,AC106=""),W106*C106,0) -> 0 | AN106: =IF(AND(C106>=1,AC106="x"),-W106*C106,0) -> 0 | AO106: =E106 -> 0 | AP106: =Y106*E106 -> 0 | AQ106: =AG106+AK106+AO106 -> 0 | AR106: =AH106+AL106 -> 0 | AS106: =AQ106+AR106 -> 0 | AT106: =AI106+AM106+AP106 -> 0 | AU106: =AJ106+AN106 -> 0 | AV106: Fall 2014 | AX106: 2015 | AZ106: 932.01 | BD106: Website | BF106: 35.7 | BH106: Amicus High Interest | BJ106: 3.2 | BL106: History | BN106: English | BP106: Reinforced Library | BR106: 32 | BT106: L | BV106: 420L | BX106: 2 – 5 | BZ106: Elizabeth Raum
C107: =C105 -> 0 | G107: Not Available | I107: 9781607534679 | K107: Great Wall of China | O107: Ancient Wonders | S107: Amicus | U107: 0 | W107: 24.95 | Y107: 0 | AA107: =IF(AC107=FALSE,AT107,0) -> 0 | AG107: =IF(AND(A107>=1,AC107=""),A107,0) -> 0 | AH107: =IF(AND(A107>=1,AC107="x"),A107,0) -> 0 | AI107: =IF(AND(A107>=1,AC107=""),U107,0) -> 0 | AJ107: =IF(AND(A107>=1,AC107="x"),-U107,0) -> 0 | AK107: 0 | AL107: 0 | AM107: 0 | AN107: 0 | AO107: =E107 -> 0 | AP107: =Y107*E107 -> 0 | AQ107: =AG107+AK107+AO107 -> 0 | AR107: =AH107+AL107 -> 0 | AS107: =AQ107+AR107 -> 0 | AT107: =AI107+AM107+AP107 -> 0 | AU107: =AJ107+AN107 -> 0 | AV107: Fall 2014 | AX107: 2015 | AZ107: 951 | BD107: Website | BF107: 35.7 | BH107: Amicus High Interest | BJ107: 3.2 | BL107: History | BN107: English | BP107: Reinforced Library | BR107: 32 | BT107: L | BV107: 530L | BX107: 2 – 5 | BZ107: Elizabeth Raum
C108: =C105 -> 0 | G108: Not Available | I108: 9781607534709 | K108: Taj Mahal | O108: Ancient Wonders | S108: Amicus | U108: 0 | W108: 24.95 | Y108: 0 | AA108: =IF(AC108=FALSE,AT108,0) -> 0 | AG108: =IF(AND(A108>=1,AC108=""),A108,0) -> 0 | AH108: =IF(AND(A108>=1,AC108="x"),A108,0) -> 0 | AI108: =IF(AND(A108>=1,AC108=""),U108,0) -> 0 | AJ108: =IF(AND(A108>=1,AC108="x"),-U108,0) -> 0 | AK108: 0 | AL108: 0 | AM108: 0 | AN108: 0 | AO108: =E108 -> 0 | AP108: =Y108*E108 -> 0 | AQ108: =AG108+AK108+AO108 -> 0 | AR108: =AH108+AL108 -> 0 | AS108: =AQ108+AR108 -> 0 | AT108: =AI108+AM108+AP108 -> 0 | AU108: =AJ108+AN108 -> 0 | AV108: Fall 2014 | AX108: 2015 | AZ108: 954/.2 | BD108: Website | BF108: 35.7 | BH108: Amicus High Interest | BJ108: 3.6 | BL108: History | BN108: English | BP108: Reinforced Library | BR108: 32 | BT108: L | BV108: 540L | BX108: 2 – 5 | BZ108: Elizabeth Raum
K110: Complete Series of 4 | O110: Animal Antonyms | U110: =SUM(U111:U113) -> 0 | W110: =SUM(W111:W113) -> 62.85 | Y110: =SUM(Y111:Y113) -> 0
C111: =C110 -> 0 | G111: Not Available | I111: 9781607535010 | K111: Animals In and Out | O111: Animal Antonyms | S111: Amicus | U111: 0 | W111: 20.95 | Y111: 0 | AA111: =IF(AC111=FALSE,AT111,0) -> 0 | AG111: =IF(AND(A111>=1,AC111=""),A111,0) -> 0 | AH111: =IF(AND(A111>=1,AC111="x"),A111,0) -> 0 | AI111: =IF(AND(A111>=1,AC111=""),U111,0) -> 0 | AJ111: =IF(AND(A111>=1,AC111="x"),-U111,0) -> 0 | AK111: =IF(AND(C111>=1,AC111=""),C111,0) -> 0 | AL111: =IF(AND(C111>=1,AC111="x"),C111,0) -> 0 | AM111: =IF(AND(C111>=1,AC111=""),W111*C111,0) -> 0 | AN111: =IF(AND(C111>=1,AC111="x"),-W111*C111,0) -> 0 | AO111: =E111 -> 0 | AP111: =Y111*E111 -> 0 | AQ111: =AG111+AK111+AO111 -> 0 | AR111: =AH111+AL111 -> 0 | AS111: =AQ111+AR111 -> 0 | AT111: =AI111+AM111+AP111 -> 0 | AU111: =AJ111+AN111 -> 0 | AV111: Fall 2013 | AX111: 2014 | AZ111: 428.1 | BD111: Website | BF111: 29.95 | BH111: Amicus Readers | BJ111: 1.4 | BL111: Animals | BN111: English | BP111: Reinforced Library | BR111: 16 | BT111: E | BV111: AD450L | BX111: 1 - 4 | BZ111: Beth Bence Reinke
C112: =C110 -> 0 | G112: Not Available | I112: 9781607535034 | K112: Animals Over and Under | O112: Animal Antonyms | S112: Amicus | U112: 0 | W112: 20.95 | Y112: 0 | AA112: =IF(AC112=FALSE,AT112,0) -> 0 | AG112: =IF(AND(A112>=1,AC112=""),A112,0) -> 0 | AH112: =IF(AND(A112>=1,AC112="x"),A112,0) -> 0 | AI112: =IF(AND(A112>=1,AC112=""),U112,0) -> 0 | AJ112: =IF(AND(A112>=1,AC112="x"),-U112,0) -> 0 | AK112: 0 | AL112: 0 | AM112: 0 | AN112: 0 | AO112: =E112 -> 0 | AP112: =Y112*E112 -> 0 | AQ112: =AG112+AK112+AO112 -> 0 | AR112: =AH112+AL112 -> 0 | AS112: =AQ112+AR112 -> 0 | AT112: =AI112+AM112+AP112 -> 0 | AU112: =AJ112+AN112 -> 0 | AV112: Fall 2013 | AX112: 2014 | AZ112: 428.1 | BD112: Website | BF112: 29.95 | BH112: Amicus Readers | BJ112: 1.4 | BL112: Animals | BN112: English | BP112: Reinforced Library | BR112: 16 | BT112: E | BV112: AD420L | BX112: 1 - 4 | BZ112: Beth Bence Reinke
C113: =C110 -> 0 | G113: Not Available | I113: 9781607535003 | K113: Animals Up and Down | O113: Animal Antonyms | S113: Amicus | U113: 0 | W113: 20.95 | Y113: 0 | AA113: =IF(AC113=FALSE,AT113,0) -> 0 | AG113: =IF(AND(A113>=1,AC113=""),A113,0) -> 0 | AH113: =IF(AND(A113>=1,AC113="x"),A113,0) -> 0 | AI113: =IF(AND(A113>=1,AC113=""),U113,0) -> 0 | AJ113: =IF(AND(A113>=1,AC113="x"),-U113,0) -> 0 | AK113: 0 | AL113: 0 | AM113: 0 | AN113: 0 | AO113: =E113 -> 0 | AP113: =Y113*E113 -> 0 | AQ113: =AG113+AK113+AO113 -> 0 | AR113: =AH113+AL113 -> 0 | AS113: =AQ113+AR113 -> 0 | AT113: =AI113+AM113+AP113 -> 0 | AU113: =AJ113+AN113 -> 0 | AV113: Fall 2013 | AX113: 2014 | AZ113: 428.1 | BD113: Website | BF113: 29.95 | BH113: Amicus Readers | BJ113: 1.7 | BL113: Animals | BN113: English | BP113: Reinforced Library | BR113: 16 | BT113: E | BV113: AD460L | BX113: 1 - 4 | BZ113: Beth Bence Reinke
K115: Complete Series of 6 | O115: Animal Builders | U115: =SUM(U116:U121) -> 294 | W115: =SUM(W116:W121) -> 143.7 | Y115: =SUM(Y116:Y121) -> 173.7
A116: =A115 -> 0 | C116: =C115 -> 0 | E116: =E115 -> 0 | G116: 9781681512617 | I116: 9781681511719 | K116: Bears Make Dens | O116: Animal Builders | S116: Amicus | U116: 49 | W116: 23.95 | Y116: =W116+5 -> 28.95 | AA116: =IF(AC116=FALSE,AT116,0) -> 0 | AG116: =IF(AND(A116>=1,AC116=""),A116,0) -> 0 | AH116: =IF(AND(A116>=1,AC116="x"),A116,0) -> 0 | AI116: =IF(AND(A116>=1,AC116=""),U116,0) -> 0 | AJ116: =IF(AND(A116>=1,AC116="x"),-U116,0) -> 0 | AK116: =IF(AND(C116>=1,AC116=""),C116,0) -> 0 | AL116: =IF(AND(C116>=1,AC116="x"),C116,0) -> 0 | AM116: =IF(AND(C116>=1,AC116=""),W116*C116,0) -> 0 | AN116: =IF(AND(C116>=1,AC116="x"),-W116*C116,0) -> 0 | AO116: =E116 -> 0 | AP116: =Y116*E116 -> 0 | AQ116: =AG116+AK116+AO116 -> 0 | AR116: =AH116+AL116 -> 0 | AS116: =AQ116+AR116 -> 0 | AT116: =AI116+AM116+AP116 -> 0 | AU116: =AJ116+AN116 -> 0 | AV116: Fall 2017 | AX116: 2018 | AZ116: 599.78/5 | BD116: 39 | BF116: 34.25 | BH116: Amicus Illustrated | BJ116: 2.1 | BL116: Animals | BN116: English | BP116: Reinforced Library | BR116: 24 | BT116: J | BV116: 500L | BX116: K - 3 | BZ116: Elizabeth Raum
A117: =A115 -> 0 | C117: =C115 -> 0 | E117: =E115 -> 0 | G117: 9781681512587 | I117: 9781681511689 | K117: Beavers Build Lodges | O117: Animal Builders | S117: Amicus | U117: 49 | W117: 23.95 | Y117: 28.95 | AA117: 0 | AG117: 0 | AH117: 0 | AI117: 0 | AJ117: 0 | AK117: 0 | AL117: 0 | AM117: 0 | AN117: 0 | AO117: 0 | AP117: 0 | AQ117: 0 | AR117: 0 | AS117: 0 | AT117: 0 | AU117: 0 | AV117: Fall 2017 | AX117: 2018 | AZ117: 599.371564 | BD117: 39 | BF117: 34.25 | BH117: Amicus Illustrated | BJ117: 2.4 | BL117: Animals | BN117: English | BP117: Reinforced Library | BR117: 24 | BT117: J | BV117: 520L | BX117: K - 3 | BZ117: Elizabeth Raum
A118: =A115 -> 0 | C118: =C115 -> 0 | E118: =E115 -> 0 | G118: 9781681512594 | I118: 9781681511696 | K118: Bees Build Beehives | O118: Animal Builders | S118: Amicus | U118: 49 | W118: 23.95 | Y118: 28.95 | AA118: 0 | AG118: 0 | AH118: 0 | AI118: 0 | AJ118: 0 | AK118: 0 | AL118: 0 | AM118: 0 | AN118: 0 | AO118: 0 | AP118: 0 | AQ118: 0 | AR118: 0 | AS118: 0 | AT118: 0 | AU118: 0 | AV118: Fall 2017 | AX118: 2018 | AZ118: 595.79/9 | BD118: 39 | BF118: 34.25 | BH118: Amicus Illustrated | BJ118: 2.5 | BL118: Animals | BN118: English | BP118: Reinforced Library | BR118: 24 | BT118: J | BV118: 550L | BX118: K - 3 | BZ118: Elizabeth Raum
A119: =A115 -> 0 | C119: =C115 -> 0 | E119: =E115 -> 0 | G119: 9781681512600 | I119: 9781681511702 | K119: Birds Build Nests | O119: Animal Builders | S119: Amicus | U119: 49 | W119: 23.95 | Y119: 28.95 | AA119: 0 | AG119: 0 | AH119: 0 | AI119: 0 | AJ119: 0 | AK119: 0 | AL119: 0 | AM119: 0 | AN119: 0 | AO119: 0 | AP119: 0 | AQ119: 0 | AR119: 0 | AS119: 0 | AT119: 0 | AU119: 0 | AV119: Fall 2017 | AX119: 2018 | AZ119: 598 | BD119: 39 | BF119: 34.25 | BH119: Amicus Illustrated | BJ119: 2.8 | BL119: Animals | BN119: English | BP119: Reinforced Library | BR119: 24 | BT119: J | BV119: 590L | BX119: K - 3 | BZ119: Elizabeth Raum
A120: =A115 -> 0 | C120: =C115 -> 0 | E120: =E115 -> 0 | G120: 9781681512624 | I120: 9781681511726 | K120: Orangutans Build Tree Nests | O120: Animal Builders | S120: Amicus | U120: 49 | W120: 23.95 | Y120: 28.95 | AA120: 0 | AG120: 0 | AH120: 0 | AI120: 0 | AJ120: 0 | AK120: 0 | AL120: 0 | AM120: 0 | AN120: 0 | AO120: 0 | AP120: 0 | AQ120: 0 | AR120: 0 | AS120: 0 | AT120: 0 | AU120: 0 | AV120: Fall 2017 | AX120: 2018 | AZ120: 599.88/3 | BD120: 39 | BF120: 34.25 | BH120: Amicus Illustrated | BJ120: 2.4 | BL120: Animals | BN120: English | BP120: Reinforced Library | BR120: 24 | BT120: J | BV120: 560L | BX120: K - 3 | BZ120: Elizabeth Raum
A121: =A115 -> 0 | C121: =C115 -> 0 | E121: =E115 -> 0 | G121: 9781681512631 | I121: 9781681511733 | K121: Rabbits Dig Burrows | O121: Animal Builders | S121: Amicus | U121: 49 | W121: 23.95 | Y121: 28.95 | AA121: 0 | AG121: 0 | AH121: 0 | AI121: 0 | AJ121: 0 | AK121: 0 | AL121: 0 | AM121: 0 | AN121: 0 | AO121: 0 | AP121: 0 | AQ121: 0 | AR121: 0 | AS121: 0 | AT121: 0 | AU121: 0 | AV121: Fall 2017 | AX121: 2018 | AZ121: 599.32 | BD121: 39 | BF121: 34.25 | BH121: Amicus Illustrated | BJ121: 2.5 | BL121: Animals | BN121: English | BP121: Reinforced Library | BR121: 24 | BT121: J | BV121: 520L | BX121: K - 3 | BZ121: Elizabeth Raum
K123: Complete Series of 6 | O123: Animal Habitats at Risk | U123: =SUM(U124:U129) -> 294 | W123: =SUM(W124:W129) -> 143.7 | Y123: =SUM(Y124:Y129) -> 173.7
A124: =A123 -> 0 | C124: =C123 -> 0 | E124: =E123 -> 0 | G124: 9781681517827 | I124: 9781681517001 | K124: Bat Colony’s Search for a New Home, A | O124: Animal Habitats at Risk | S124: Amicus | U124: 49 | W124: 23.95 | Y124: =W124+5 -> 28.95 | AA124: =IF(AC124=FALSE,AT124,0) -> 0 | AG124: =IF(AND(A124>=1,AC124=""),A124,0) -> 0 | AH124: =IF(AND(A124>=1,AC124="x"),A124,0) -> 0 | AI124: =IF(AND(A124>=1,AC124=""),U124,0) -> 0 | AJ124: =IF(AND(A124>=1,AC124="x"),-U124,0) -> 0 | AK124: =IF(AND(C124>=1,AC124=""),C124,0) -> 0 | AL124: =IF(AND(C124>=1,AC124="x"),C124,0) -> 0 | AM124: =IF(AND(C124>=1,AC124=""),W124*C124,0) -> 0 | AN124: =IF(AND(C124>=1,AC124="x"),-W124*C124,0) -> 0 | AO124: =E124 -> 0 | AP124: =Y124*E124 -> 0 | AQ124: =AG124+AK124+AO124 -> 0 | AR124: =AH124+AL124 -> 0 | AS124: =AQ124+AR124 -> 0 | AT124: =AI124+AM124+AP124 -> 0 | AU124: =AJ124+AN124 -> 0 | AV124: Fall 2019 | AX124: 2020 | AZ124: 599.4 | BB124: SLJ | BD124: 39 | BF124: 34.25 | BH124: Amicus Illustrated | BJ124: 3.1 | BL124: Animals | BN124: English | BP124: Reinforced Library | BR124: 24 | BT124: J | BV124: 590L | BX124: K - 3 | BZ124: Mary Ellen Klukow
A125: =A123 -> 0 | C125: =C123 -> 0 | E125: =E123 -> 0 | G125: 9781681517858 | I125: 9781681517032 | K125: Bee's Difficult Search for Food, A | O125: Animal Habitats at Risk | S125: Amicus | U125: 49 | W125: 23.95 | Y125: 28.95 | AA125: 0 | AG125: 0 | AH125: 0 | AI125: 0 | AJ125: 0 | AK125: 0 | AL125: 0 | AM125: 0 | AN125: 0 | AO125: 0 | AP125: 0 | AQ125: 0 | AR125: 0 | AS125: 0 | AT125: 0 | AU125: 0 | AV125: Fall 2019 | AX125: 2020 | AZ125: 595.79/9 | BB125: SLJ | BD125: 39 | BF125: 34.25 | BH125: Amicus Illustrated | BJ125: 3.3 | BL125: Animals | BN125: English | BP125: Reinforced Library | BR125: 24 | BT125: J | BV125: 600L | BX125: K - 3 | BZ125: Mary Ellen Klukow
A126: =A123 -> 0 | C126: =C123 -> 0 | E126: =E123 -> 0 | G126: 9781681517834 | I126: 9781681517018 | K126: Frog's Dangerous Home, A | O126: Animal Habitats at Risk | S126: Amicus | U126: 49 | W126: 23.95 | Y126: 28.95 | AA126: 0 | AG126: 0 | AH126: 0 | AI126: 0 | AJ126: 0 | AK126: 0 | AL126: 0 | AM126: 0 | AN126: 0 | AO126: 0 | AP126: 0 | AQ126: 0 | AR126: 0 | AS126: 0 | AT126: 0 | AU126: 0 | AV126: Fall 2019 | AX126: 2020 | AZ126: 333.95/789 | BB126: SLJ | BD126: 39 | BF126: 34.25 | BH126: Amicus Illustrated | BJ126: 3.1 | BL126: Animals | BN126: English | BP126: Reinforced Library | BR126: 24 | BT126: J | BV126: 630L | BX126: K - 3 | BZ126: Mary Ellen Klukow
A127: =A123 -> 0 | C127: =C123 -> 0 | E127: =E123 -> 0 | G127: 9781681517865 | I127: 9781681517049 | K127: Sparrow's Disappearing Home, A | O127: Animal Habitats at Risk | S127: Amicus | U127: 49 | W127: 23.95 | Y127: 28.95 | AA127: 0 | AG127: 0 | AH127: 0 | AI127: 0 | AJ127: 0 | AK127: 0 | AL127: 0 | AM127: 0 | AN127: 0 | AO127: 0 | AP127: 0 | AQ127: 0 | AR127: 0 | AS127: 0 | AT127: 0 | AU127: 0 | AV127: Fall 2019 | AX127: 2020 | AZ127: 333.95/887 | BB127: SLJ | BD127: 39 | BF127: 34.25 | BH127: Amicus Illustrated | BJ127: 3.2 | BL127: Animals | BN127: English | BP127: Reinforced Library | BR127: 24 | BT127: J | BV127: 590L | BX127: K - 3 | BZ127: Mary Ellen Klukow
A128: =A123 -> 0 | C128: =C123 -> 0 | E128: =E123 -> 0 | G128: 9781681517872 | I128: 9781681517056 | K128: Turtle's Dangerous Journey, A | O128: Animal Habitats at Risk | S128: Amicus | U128: 49 | W128: 23.95 | Y128: 28.95 | AA128: 0 | AG128: 0 | AH128: 0 | AI128: 0 | AJ128: 0 | AK128: 0 | AL128: 0 | AM128: 0 | AN128: 0 | AO128: 0 | AP128: 0 | AQ128: 0 | AR128: 0 | AS128: 0 | AT128: 0 | AU128: 0 | AV128: Fall 2019 | AX128: 2020 | AZ128: 333.95/792 | BB128: SLJ | BD128: 39 | BF128: 34.25 | BH128: Amicus Illustrated | BJ128: 3 | BL128: Animals | BN128: English | BP128: Reinforced Library | BR128: 24 | BT128: J | BV128: 570L | BX128: K - 3 | BZ128: Mary Ellen Klukow
A129: =A123 -> 0 | C129: =C123 -> 0 | E129: =E123 -> 0 | G129: 9781681517841 | I129: 9781681517025 | K129: Wild Cat's Shrinking Home, A | O129: Animal Habitats at Risk | S129: Amicus | U129: 49 | W129: 23.95 | Y129: 28.95 | AA129: 0 | AG129: 0 | AH129: 0 | AI129: 0 | AJ129: 0 | AK129: 0 | AL129: 0 | AM129: 0 | AN129: 0 | AO129: 0 | AP129: 0 | AQ129: 0 | AR129: 0 | AS129: 0 | AT129: 0 | AU129: 0 | AV129: Fall 2019 | AX129: 2020 | AZ129: 599.75/3 | BB129: SLJ | BD129: 39 | BF129: 34.25 | BH129: Amicus Illustrated | BJ129: 3.5 | BL129: Animals | BN129: English | BP129: Reinforced Library | BR129: 24 | BT129: J | BV129: 680L | BX129: K - 3 | BZ129: Mary Ellen Klukow
K131: Complete Series of 6 | O131: Animal Kingdom | U131: =SUM(U132:U137) -> 0 | W131: =SUM(W132:W137) -> 149.7 | Y131: =SUM(Y132:Y137) -> 0
C132: =C131 -> 0 | G132: Not Available | I132: 9781607534716 | K132: Amphibians | O132: Animal Kingdom | S132: Amicus | U132: 0 | W132: 24.95 | Y132: 0 | AA132: =IF(AC132=FALSE,AT132,0) -> 0 | AG132: =IF(AND(A132>=1,AC132=""),A132,0) -> 0 | AH132: =IF(AND(A132>=1,AC132="x"),A132,0) -> 0 | AI132: =IF(AND(A132>=1,AC132=""),U132,0) -> 0 | AJ132: =IF(AND(A132>=1,AC132="x"),-U132,0) -> 0 | AK132: =IF(AND(C132>=1,AC132=""),C132,0) -> 0 | AL132: =IF(AND(C132>=1,AC132="x"),C132,0) -> 0 | AM132: =IF(AND(C132>=1,AC132=""),W132*C132,0) -> 0 | AN132: =IF(AND(C132>=1,AC132="x"),-W132*C132,0) -> 0 | AO132: =E132 -> 0 | AP132: =Y132*E132 -> 0 | AQ132: =AG132+AK132+AO132 -> 0 | AR132: =AH132+AL132 -> 0 | AS132: =AQ132+AR132 -> 0 | AT132: =AI132+AM132+AP132 -> 0 | AU132: =AJ132+AN132 -> 0 | AV132: Fall 2014 | AX132: 2015 | AZ132: 597.8 | BD132: 31 | BF132: 35.7 | BH132: Amicus High Interest | BJ132: 3.1 | BL132: Animals | BN132: English | BP132: Reinforced Library | BR132: 32 | BT132: L | BV132: 500L | BX132: 2 – 5 | BZ132: Michelle Levine
C133: =C131 -> 0 | G133: Not Available | I133: 9781607534723 | K133: Birds | O133: Animal Kingdom | S133: Amicus | U133: 0 | W133: 24.95 | Y133: 0 | AA133: 0 | AG133: 0 | AH133: 0 | AI133: 0 | AJ133: 0 | AK133: 0 | AL133: 0 | AM133: 0 | AN133: 0 | AO133: 0 | AP133: 0 | AQ133: 0 | AR133: 0 | AS133: 0 | AT133: 0 | AU133: 0 | AV133: Fall 2014 | AX133: 2015 | AZ133: 598 | BD133: 31 | BF133: 35.7 | BH133: Amicus High Interest | BJ133: 3.2 | BL133: Animals | BN133: English | BP133: Reinforced Library | BR133: 32 | BT133: L | BV133: 560L | BX133: 2 – 5 | BZ133: Allan Morey
C134: =C131 -> 0 | G134: Not Available | I134: 9781607534730 | K134: Fish | O134: Animal Kingdom | S134: Amicus | U134: 0 | W134: 24.95 | Y134: 0 | AA134: 0 | AG134: 0 | AH134: 0 | AI134: 0 | AJ134: 0 | AK134: 0 | AL134: 0 | AM134: 0 | AN134: 0 | AO134: 0 | AP134: 0 | AQ134: 0 | AR134: 0 | AS134: 0 | AT134: 0 | AU134: 0 | AV134: Fall 2014 | AX134: 2015 | AZ134: 597 | BD134: 31 | BF134: 35.7 | BH134: Amicus High Interest | BJ134: 2.8 | BL134: Animals | BN134: English | BP134: Reinforced Library | BR134: 32 | BT134: L | BV134: 490L | BX134: 2 – 5 | BZ134: Michelle Levine
C135: =C131 -> 0 | G135: Not Available | I135: 9781607534747 | K135: Insects | O135: Animal Kingdom | S135: Amicus | U135: 0 | W135: 24.95 | Y135: 0 | AA135: 0 | AG135: 0 | AH135: 0 | AI135: 0 | AJ135: 0 | AK135: 0 | AL135: 0 | AM135: 0 | AN135: 0 | AO135: 0 | AP135: 0 | AQ135: 0 | AR135: 0 | AS135: 0 | AT135: 0 | AU135: 0 | AV135: Fall 2014 | AX135: 2015 | AZ135: 595.7 | BD135: 31 | BF135: 35.7 | BH135: Amicus High Interest | BJ135: 3.2 | BL135: Animals | BN135: English | BP135: Reinforced Library | BR135: 32 | BT135: L | BV135: 490L | BX135: 2 – 5 | BZ135: Allan Morey
C136: =C131 -> 0 | G136: Not Available | I136: 9781607534754 | K136: Mammals | O136: Animal Kingdom | S136: Amicus | U136: 0 | W136: 24.95 | Y136: 0 | AA136: 0 | AG136: 0 | AH136: 0 | AI136: 0 | AJ136: 0 | AK136: 0 | AL136: 0 | AM136: 0 | AN136: 0 | AO136: 0 | AP136: 0 | AQ136: 0 | AR136: 0 | AS136: 0 | AT136: 0 | AU136: 0 | AV136: Fall 2014 | AX136: 2015 | AZ136: 599 | BD136: 31 | BF136: 35.7 | BH136: Amicus High Interest | BJ136: 2.9 | BL136: Animals | BN136: English | BP136: Reinforced Library | BR136: 32 | BT136: L | BV136: 480L | BX136: 2 – 5 | BZ136: Michelle Levine
C137: =C131 -> 0 | G137: Not Available | I137: 9781607534761 | K137: Reptiles | O137: Animal Kingdom | S137: Amicus | U137: 0 | W137: 24.95 | Y137: 0 | AA137: 0 | AG137: 0 | AH137: 0 | AI137: 0 | AJ137: 0 | AK137: 0 | AL137: 0 | AM137: 0 | AN137: 0 | AO137: 0 | AP137: 0 | AQ137: 0 | AR137: 0 | AS137: 0 | AT137: 0 | AU137: 0 | AV137: Fall 2014 | AX137: 2015 | AZ137: 597.9 | BD137: 31 | BF137: 35.7 | BH137: Amicus High Interest | BJ137: 3 | BL137: Animals | BN137: English | BP137: Reinforced Library | BR137: 32 | BT137: L | BV137: 450L | BX137: 2 – 5 | BZ137: Michelle Levine
K139: Complete Series of 7 | O139: Animales africanos (Spot African Animals) | U139: =SUM(U140:U146) -> 299.95 | W139: =SUM(W140:W146) -> 146.65 | Y139: =SUM(Y140:Y146) -> 181.65
A140: =A139 -> 0 | C140: =C139 -> 0 | E140: =E139 -> 0 | G140: 9781681519081 | I140: 9781681518824 | K140: Las cebras (Zebras) | O140: Animales africanos (Spot African Animals) | S140: Amicus | U140: 42.85 | W140: 20.95 | Y140: =W140+5 -> 25.95 | AA140: =IF(AC140=FALSE,AT140,0) -> 0 | AG140: =IF(AND(A140>=1,AC140=""),A140,0) -> 0 | AH140: =IF(AND(A140>=1,AC140="x"),A140,0) -> 0 | AI140: =IF(AND(A140>=1,AC140=""),U140,0) -> 0 | AJ140: =IF(AND(A140>=1,AC140="x"),-U140,0) -> 0 | AK140: =IF(AND(C140>=1,AC140=""),C140,0) -> 0 | AL140: =IF(AND(C140>=1,AC140="x"),C140,0) -> 0 | AM140: =IF(AND(C140>=1,AC140=""),W140*C140,0) -> 0 | AN140: =IF(AND(C140>=1,AC140="x"),-W140*C140,0) -> 0 | AO140: =E140 -> 0 | AP140: =Y140*E140 -> 0 | AQ140: =AG140+AK140+AO140 -> 0 | AR140: =AH140+AL140 -> 0 | AS140: =AQ140+AR140 -> 0 | AT140: =AI140+AM140+AP140 -> 0 | AU140: =AJ140+AN140 -> 0 | AV140: Fall 2019 | AX140: 2020 | AZ140: 599.665/7 | BD140: 51 | BF140: 29.95 | BH140: Spot | BJ140: 0.9 | BL140: Animals | BN140: Spanish | BP140: Reinforced Library | BR140: 16 | BX140: PreK - 3 | BZ140: Mary Ellen Klukow
A141: =A139 -> 0 | C141: =C139 -> 0 | E141: =E139 -> 0 | G141: 9781681519043 | I141: 9781681518787 | K141: Las jirafas (Giraffes) | O141: Animales africanos (Spot African Animals) | S141: Amicus | U141: 42.85 | W141: 20.95 | Y141: 25.95 | AA141: 0 | AG141: 0 | AH141: 0 | AI141: 0 | AJ141: 0 | AK141: 0 | AL141: 0 | AM141: 0 | AN141: 0 | AO141: 0 | AP141: 0 | AQ141: 0 | AR141: 0 | AS141: 0 | AT141: 0 | AU141: 0 | AV141: Fall 2019 | AX141: 2020 | AZ141: 599.638 | BD141: 51 | BF141: 29.95 | BH141: Spot | BJ141: 0.9 | BL141: Animals | BN141: Spanish | BP141: Reinforced Library | BR141: 16 | BX141: PreK - 3 | BZ141: Mary Ellen Klukow
A142: =A139 -> 0 | C142: =C139 -> 0 | E142: =E139 -> 0 | G142: 9781681519029 | I142: 9781681518763 | K142: Los cocodrilos (Crocodiles) | O142: Animales africanos (Spot African Animals) | S142: Amicus | U142: 42.85 | W142: 20.95 | Y142: 25.95 | AA142: 0 | AG142: 0 | AH142: 0 | AI142: 0 | AJ142: 0 | AK142: 0 | AL142: 0 | AM142: 0 | AN142: 0 | AO142: 0 | AP142: 0 | AQ142: 0 | AR142: 0 | AS142: 0 | AT142: 0 | AU142: 0 | AV142: Fall 2019 | AX142: 2020 | AZ142: 597.98/2 | BD142: 51 | BF142: 29.95 | BH142: Spot | BJ142: 0.8 | BL142: Animals | BN142: Spanish | BP142: Reinforced Library | BR142: 16 | BX142: PreK - 3 | BZ142: Mary Ellen Klukow
A143: =A139 -> 0 | C143: =C139 -> 0 | E143: =E139 -> 0 | G143: 9781681519036 | I143: 9781681518770 | K143: Los elefantes (Elephants) | O143: Animales africanos (Spot African Animals) | S143: Amicus | U143: 42.85 | W143: 20.95 | Y143: 25.95 | AA143: 0 | AG143: 0 | AH143: 0 | AI143: 0 | AJ143: 0 | AK143: 0 | AL143: 0 | AM143: 0 | AN143: 0 | AO143: 0 | AP143: 0 | AQ143: 0 | AR143: 0 | AS143: 0 | AT143: 0 | AU143: 0 | AV143: Fall 2019 | AX143: 2020 | AZ143: 599.67 | BD143: 51 | BF143: 29.95 | BH143: Spot | BJ143: 0.9 | BL143: Animals | BN143: Spanish | BP143: Reinforced Library | BR143: 16 | BX143: PreK - 3 | BZ143: Mary Ellen Klukow
A144: =A139 -> 0 | C144: =C139 -> 0 | E144: =E139 -> 0 | G144: 9781681519050 | I144: 9781681518794 | K144: Los gorilas (Gorillas) | O144: Animales africanos (Spot African Animals) | S144: Amicus | U144: 42.85 | W144: 20.95 | Y144: 25.95 | AA144: 0 | AG144: 0 | AH144: 0 | AI144: 0 | AJ144: 0 | AK144: 0 | AL144: 0 | AM144: 0 | AN144: 0 | AO144: 0 | AP144: 0 | AQ144: 0 | AR144: 0 | AS144: 0 | AT144: 0 | AU144: 0 | AV144: Fall 2019 | AX144: 2020 | AZ144: 599.884 | BD144: 51 | BF144: 29.95 | BH144: Spot | BJ144: 0.9 | BL144: Animals | BN144: Spanish | BP144: Reinforced Library | BR144: 16 | BX144: PreK - 3 | BZ144: Mary Ellen Klukow
A145: =A139 -> 0 | C145: =C139 -> 0 | E145: =E139 -> 0 | G145: 9781681519012 | I145: 9781681518756 | K145: Los guepardos (Cheetahs) | O145: Animales africanos (Spot African Animals) | S145: Amicus | U145: 42.85 | W145: 20.95 | Y145: 25.95 | AA145: 0 | AG145: 0 | AH145: 0 | AI145: 0 | AJ145: 0 | AK145: 0 | AL145: 0 | AM145: 0 | AN145: 0 | AO145: 0 | AP145: 0 | AQ145: 0 | AR145: 0 | AS145: 0 | AT145: 0 | AU145: 0 | AV145: Fall 2019 | AX145: 2020 | AZ145: 599.75/9 | BD145: 51 | BF145: 29.95 | BH145: Spot | BJ145: 0.9 | BL145: Animals | BN145: Spanish | BP145: Reinforced Library | BR145: 16 | BX145: PreK - 3 | BZ145: Mary Ellen Klukow
A146: =A139 -> 0 | C146: =C139 -> 0 | E146: =E139 -> 0 | G146: 9781681519074 | I146: 9781681518817 | K146: Los leones (Lions) | O146: Animales africanos (Spot African Animals) | S146: Amicus | U146: 42.85 | W146: 20.95 | Y146: 25.95 | AA146: 0 | AG146: 0 | AH146: 0 | AI146: 0 | AJ146: 0 | AK146: 0 | AL146: 0 | AM146: 0 | AN146: 0 | AO146: 0 | AP146: 0 | AQ146: 0 | AR146: 0 | AS146: 0 | AT146: 0 | AU146: 0 | AV146: Fall 2019 | AX146: 2020 | AZ146: 599.757 | BD146: 51 | BF146: 29.95 | BH146: Spot | BJ146: 0.9 | BL146: Animals | BN146: Spanish | BP146: Reinforced Library | BR146: 16 | BX146: PreK - 3 | BZ146: Mary Ellen Klukow
K148: Complete Series of 3 | O148: Animales constructores (Animal Builders) | U148: =SUM(U149:U151) -> 0 | W148: =SUM(W149:W151) -> 71.85 | Y148: =SUM(Y149:Y151) -> 0
C149: =C148 -> 0 | G149: Not Available | I149: 9781681512792 | K149: Las abejas y sus colmenas (Bees Build Beehives) | O149: Animales constructores (Animal Builders) | S149: Amicus | U149: 0 | W149: 23.95 | Y149: 0 | AA149: =IF(AC149=FALSE,AT149,0) -> 0 | AG149: =IF(AND(A149>=1,AC149=""),A149,0) -> 0 | AH149: =IF(AND(A149>=1,AC149="x"),A149,0) -> 0 | AI149: =IF(AND(A149>=1,AC149=""),U149,0) -> 0 | AJ149: =IF(AND(A149>=1,AC149="x"),-U149,0) -> 0 | AK149: =IF(AND(C149>=1,AC149=""),C149,0) -> 0 | AL149: =IF(AND(C149>=1,AC149="x"),C149,0) -> 0 | AM149: =IF(AND(C149>=1,AC149=""),W149*C149,0) -> 0 | AN149: =IF(AND(C149>=1,AC149="x"),-W149*C149,0) -> 0 | AO149: =E149 -> 0 | AP149: =Y149*E149 -> 0 | AQ149: =AG149+AK149+AO149 -> 0 | AR149: =AH149+AL149 -> 0 | AS149: =AQ149+AR149 -> 0 | AT149: =AI149+AM149+AP149 -> 0 | AU149: =AJ149+AN149 -> 0 | AV149: Fall 2017 | AX149: 2018 | AZ149: 595.79/9 | BB149: SLJ | BD149: 50 | BF149: 34.25 | BH149: Amicus Illustrated | BJ149: 2.3 | BL149: Animals | BN149: Spanish | BP149: Reinforced Library | BR149: 24 | BX149: K - 3 | BZ149: Elizabeth Raum
C150: =C148 -> 0 | G150: Not Available | I150: 9781681512822 | K150: Los orangutanes y sus nidos (Orangutans Build Tree Nests) | O150: Animales constructores (Animal Builders) | S150: Amicus | U150: 0 | W150: 23.95 | Y150: 0 | AA150: =IF(AC150=FALSE,AT150,0) -> 0 | AG150: =IF(AND(A150>=1,AC150=""),A150,0) -> 0 | AH150: =IF(AND(A150>=1,AC150="x"),A150,0) -> 0 | AI150: =IF(AND(A150>=1,AC150=""),U150,0) -> 0 | AJ150: =IF(AND(A150>=1,AC150="x"),-U150,0) -> 0 | AK150: 0 | AL150: 0 | AM150: 0 | AN150: 0 | AO150: =E150 -> 0 | AP150: =Y150*E150 -> 0 | AQ150: =AG150+AK150+AO150 -> 0 | AR150: =AH150+AL150 -> 0 | AS150: =AQ150+AR150 -> 0 | AT150: =AI150+AM150+AP150 -> 0 | AU150: =AJ150+AN150 -> 0 | AV150: Fall 2017 | AX150: 2018 | AZ150: 599.88/3 | BB150: SLJ | BD150: 50 | BF150: 34.25 | BH150: Amicus Illustrated | BJ150: 2.1 | BL150: Animals | BN150: Spanish | BP150: Reinforced Library | BR150: 24 | BX150: K - 3 | BZ150: Elizabeth Raum
C151: =C148 -> 0 | G151: Not Available | I151: 9781681512808 | K151: Los pájaros y sus nidos (Birds Build Nests) | O151: Animales constructores (Animal Builders) | S151: Amicus | U151: 0 | W151: 23.95 | Y151: 0 | AA151: =IF(AC151=FALSE,AT151,0) -> 0 | AG151: =IF(AND(A151>=1,AC151=""),A151,0) -> 0 | AH151: =IF(AND(A151>=1,AC151="x"),A151,0) -> 0 | AI151: =IF(AND(A151>=1,AC151=""),U151,0) -> 0 | AJ151: =IF(AND(A151>=1,AC151="x"),-U151,0) -> 0 | AK151: 0 | AL151: 0 | AM151: 0 | AN151: 0 | AO151: =E151 -> 0 | AP151: =Y151*E151 -> 0 | AQ151: =AG151+AK151+AO151 -> 0 | AR151: =AH151+AL151 -> 0 | AS151: =AQ151+AR151 -> 0 | AT151: =AI151+AM151+AP151 -> 0 | AU151: =AJ151+AN151 -> 0 | AV151: Fall 2017 | AX151: 2018 | AZ151: 598 | BB151: SLJ | BD151: 50 | BF151: 34.25 | BH151: Amicus Illustrated | BJ151: 2.7 | BL151: Animals | BN151: Spanish | BP151: Reinforced Library | BR151: 24 | BX151: K - 3 | BZ151: Elizabeth Raum
K153: Complete Series of 6 | O153: Animales del océano (Spot Ocean Animals) | U153: =SUM(U154:U159) -> 257.1 | W153: =SUM(W154:W159) -> 125.7 | Y153: =SUM(Y154:Y159) -> 155.7
A154: =A153 -> 0 | C154: =C153 -> 0 | E154: =E153 -> 0 | G154: 9781645492399 | I154: 9781645492337 | K154: Las anguilas (Eels) | O154: Animales del océano (Spot Ocean Animals) | S154: Amicus | U154: 42.85 | W154: 20.95 | Y154: =W154+5 -> 25.95 | AA154: =IF(AC154=FALSE,AT154,0) -> 0 | AG154: =IF(AND(A154>=1,AC154=""),A154,0) -> 0 | AH154: =IF(AND(A154>=1,AC154="x"),A154,0) -> 0 | AI154: =IF(AND(A154>=1,AC154=""),U154,0) -> 0 | AJ154: =IF(AND(A154>=1,AC154="x"),-U154,0) -> 0 | AK154: =IF(AND(C154>=1,AC154=""),C154,0) -> 0 | AL154: =IF(AND(C154>=1,AC154="x"),C154,0) -> 0 | AM154: =IF(AND(C154>=1,AC154=""),W154*C154,0) -> 0 | AN154: =IF(AND(C154>=1,AC154="x"),-W154*C154,0) -> 0 | AO154: =E154 -> 0 | AP154: =Y154*E154 -> 0 | AQ154: =AG154+AK154+AO154 -> 0 | AR154: =AH154+AL154 -> 0 | AS154: =AQ154+AR154 -> 0 | AT154: =AI154+AM154+AP154 -> 0 | AU154: =AJ154+AN154 -> 0 | AV154: Spring 2021 | AX154: 2021 | AZ154: 597/.43 | BD154: 49 | BF154: 29.95 | BH154: Spot | BJ154: 1 | BL154: Life Science | BN154: Spanish | BP154: Reinforced Library | BR154: 16 | BT154: C | BX154: K & Up | BZ154: Mari Schuh
A155: =A153 -> 0 | C155: =C153 -> 0 | E155: =E153 -> 0 | G155: 9781645492405 | I155: 9781645492344 | K155: Las langostas (Lobsters) | O155: Animales del océano (Spot Ocean Animals) | S155: Amicus | U155: 42.85 | W155: 20.95 | Y155: 25.95 | AA155: 0 | AG155: 0 | AH155: 0 | AI155: 0 | AJ155: 0 | AK155: 0 | AL155: 0 | AM155: 0 | AN155: 0 | AO155: 0 | AP155: 0 | AQ155: 0 | AR155: 0 | AS155: 0 | AT155: 0 | AU155: 0 | AV155: Spring 2021 | AX155: 2021 | AZ155: 595.3/84 | BD155: 49 | BF155: 29.95 | BH155: Spot | BJ155: 1.4 | BL155: Life Science | BN155: Spanish | BP155: Reinforced Library | BR155: 16 | BT155: C | BX155: K & Up | BZ155: Mari Schuh
A156: =A153 -> 0 | C156: =C153 -> 0 | E156: =E153 -> 0 | G156: 9781645492436 | I156: 9781645492375 | K156: Los calamares (Squids) | O156: Animales del océano (Spot Ocean Animals) | S156: Amicus | U156: 42.85 | W156: 20.95 | Y156: 25.95 | AA156: 0 | AG156: 0 | AH156: 0 | AI156: 0 | AJ156: 0 | AK156: 0 | AL156: 0 | AM156: 0 | AN156: 0 | AO156: 0 | AP156: 0 | AQ156: 0 | AR156: 0 | AS156: 0 | AT156: 0 | AU156: 0 | AV156: Spring 2021 | AX156: 2021 | AZ156: 594/.58 | BD156: 49 | BF156: 29.95 | BH156: Spot | BJ156: 1 | BL156: Life Science | BN156: Spanish | BP156: Reinforced Library | BR156: 16 | BT156: C | BX156: K & Up | BZ156: Mari Schuh
A157: =A153 -> 0 | C157: =C153 -> 0 | E157: =E153 -> 0 | G157: 9781645492382 | I157: 9781645492320 | K157: Los corales (Corals) | O157: Animales del océano (Spot Ocean Animals) | S157: Amicus | U157: 42.85 | W157: 20.95 | Y157: 25.95 | AA157: 0 | AG157: 0 | AH157: 0 | AI157: 0 | AJ157: 0 | AK157: 0 | AL157: 0 | AM157: 0 | AN157: 0 | AO157: 0 | AP157: 0 | AQ157: 0 | AR157: 0 | AS157: 0 | AT157: 0 | AU157: 0 | AV157: Spring 2021 | AX157: 2021 | AZ157: 593.6 | BD157: 49 | BF157: 29.95 | BH157: Spot | BJ157: 1.8 | BL157: Life Science | BN157: Spanish | BP157: Reinforced Library | BR157: 16 | BT157: C | BX157: K & Up | BZ157: Mari Schuh
A158: =A153 -> 0 | C158: =C153 -> 0 | E158: =E153 -> 0 | G158: 9781645492429 | I158: 9781645492368 | K158: Los dragones de mar (Sea Dragons) | O158: Animales del océano (Spot Ocean Animals) | S158: Amicus | U158: 42.85 | W158: 20.95 | Y158: 25.95 | AA158: 0 | AG158: 0 | AH158: 0 | AI158: 0 | AJ158: 0 | AK158: 0 | AL158: 0 | AM158: 0 | AN158: 0 | AO158: 0 | AP158: 0 | AQ158: 0 | AR158: 0 | AS158: 0 | AT158: 0 | AU158: 0 | AV158: Spring 2021 | AX158: 2021 | AZ158: 597/.679 | BD158: 49 | BF158: 29.95 | BH158: Spot | BJ158: 1.3 | BL158: Life Science | BN158: Spanish | BP158: Reinforced Library | BR158: 16 | BT158: C | BX158: K & Up | BZ158: Mari Schuh
A159: =A153 -> 0 | C159: =C153 -> 0 | E159: =E153 -> 0 | G159: 9781645492412 | I159: 9781645492351 | K159: Los manatíes (Manatees) | O159: Animales del océano (Spot Ocean Animals) | S159: Amicus | U159: 42.85 | W159: 20.95 | Y159: 25.95 | AA159: 0 | AG159: 0 | AH159: 0 | AI159: 0 | AJ159: 0 | AK159: 0 | AL159: 0 | AM159: 0 | AN159: 0 | AO159: 0 | AP159: 0 | AQ159: 0 | AR159: 0 | AS159: 0 | AT159: 0 | AU159: 0 | AV159: Spring 2021 | AX159: 2021 | AZ159: 599.55 | BD159: 49 | BF159: 29.95 | BH159: Spot | BJ159: 0.9 | BL159: Life Science | BN159: Spanish | BP159: Reinforced Library | BR159: 16 | BT159: C | BX159: K & Up | BZ159: Mari Schuh
K161: Complete Series of 6 | O161: Animales norteamericanos (North American Animals) | U161: =SUM(U162:U167) -> 0 | W161: =SUM(W162:W167) -> 143.7 | Y161: =SUM(Y162:Y167) -> 0
C162: =C161 -> 0 | G162: Not Available | I162: 9781681516189 | K162: El bisonte americano ( American Bison) | O162: Animales norteamericanos (North American Animals) | S162: Amicus | U162: 0 | W162: 23.95 | Y162: 0 | AA162: =IF(AC162=FALSE,AT162,0) -> 0 | AG162: =IF(AND(A162>=1,AC162=""),A162,0) -> 0 | AH162: =IF(AND(A162>=1,AC162="x"),A162,0) -> 0 | AI162: =IF(AND(A162>=1,AC162=""),U162,0) -> 0 | AJ162: =IF(AND(A162>=1,AC162="x"),-U162,0) -> 0 | AK162: =IF(AND(C162>=1,AC162=""),C162,0) -> 0 | AL162: =IF(AND(C162>=1,AC162="x"),C162,0) -> 0 | AM162: =IF(AND(C162>=1,AC162=""),W162*C162,0) -> 0 | AN162: =IF(AND(C162>=1,AC162="x"),-W162*C162,0) -> 0 | AO162: =E162 -> 0 | AP162: =Y162*E162 -> 0 | AQ162: =AG162+AK162+AO162 -> 0 | AR162: =AH162+AL162 -> 0 | AS162: =AQ162+AR162 -> 0 | AT162: =AI162+AM162+AP162 -> 0 | AU162: =AJ162+AN162 -> 0 | AV162: Fall 2018 | AX162: 2019 | AZ162: 599.64/3 | BD162: 50 | BF162: 34.25 | BH162: Amicus High Interest | BJ162: 2.9 | BL162: Animals | BN162: Spanish | BP162: Reinforced Library | BR162: 24 | BX162: K - 3 | BZ162: Jill Sherman
C163: =C161 -> 0 | G163: Not Available | I163: 9781681516219 | K163: El borrego cimarrón (Bighorn Sheep) | O163: Animales norteamericanos (North American Animals) | S163: Amicus | U163: 0 | W163: 23.95 | Y163: 0 | AA163: 0 | AG163: 0 | AH163: 0 | AI163: 0 | AJ163: 0 | AK163: 0 | AL163: 0 | AM163: 0 | AN163: 0 | AO163: 0 | AP163: 0 | AQ163: 0 | AR163: 0 | AS163: 0 | AT163: 0 | AU163: 0 | AV163: Fall 2018 | AX163: 2019 | AZ163: 599.649/7 | BD163: 50 | BF163: 34.25 | BH163: Amicus High Interest | BJ163: 2.4 | BL163: Animals | BN163: Spanish | BP163: Reinforced Library | BR163: 24 | BX163: K - 3 | BZ163: Jill Sherman
C164: =C161 -> 0 | G164: Not Available | I164: 9781681516226 | K164: El caribú (Caribou) | O164: Animales norteamericanos (North American Animals) | S164: Amicus | U164: 0 | W164: 23.95 | Y164: 0 | AA164: 0 | AG164: 0 | AH164: 0 | AI164: 0 | AJ164: 0 | AK164: 0 | AL164: 0 | AM164: 0 | AN164: 0 | AO164: 0 | AP164: 0 | AQ164: 0 | AR164: 0 | AS164: 0 | AT164: 0 | AU164: 0 | AV164: Fall 2018 | AX164: 2019 | AZ164: 599.65/8 | BD164: 50 | BF164: 34.25 | BH164: Amicus High Interest | BJ164: 2.7 | BL164: Animals | BN164: Spanish | BP164: Reinforced Library | BR164: 24 | BX164: K - 3 | BZ164: Rachel Grack
C165: =C161 -> 0 | G165: Not Available | I165: 9781681516202 | K165: Las águilas calvas (Bald Eagles) | O165: Animales norteamericanos (North American Animals) | S165: Amicus | U165: 0 | W165: 23.95 | Y165: 0 | AA165: 0 | AG165: 0 | AH165: 0 | AI165: 0 | AJ165: 0 | AK165: 0 | AL165: 0 | AM165: 0 | AN165: 0 | AO165: 0 | AP165: 0 | AQ165: 0 | AR165: 0 | AS165: 0 | AT165: 0 | AU165: 0 | AV165: Fall 2018 | AX165: 2019 | AZ165: 598.9/43 | BD165: 50 | BF165: 34.25 | BH165: Amicus High Interest | BJ165: 2.2 | BL165: Animals | BN165: Spanish | BP165: Reinforced Library | BR165: 24 | BX165: K - 3 | BZ165: Rachel Grack
C166: =C161 -> 0 | G166: Not Available | I166: 9781681516196 | K166: Los armadillos (Armadillos) | O166: Animales norteamericanos (North American Animals) | S166: Amicus | U166: 0 | W166: 23.95 | Y166: 0 | AA166: 0 | AG166: 0 | AH166: 0 | AI166: 0 | AJ166: 0 | AK166: 0 | AL166: 0 | AM166: 0 | AN166: 0 | AO166: 0 | AP166: 0 | AQ166: 0 | AR166: 0 | AS166: 0 | AT166: 0 | AU166: 0 | AV166: Fall 2018 | AX166: 2019 | AZ166: 599.3/12 | BD166: 50 | BF166: 34.25 | BH166: Amicus High Interest | BJ166: 3 | BL166: Animals | BN166: Spanish | BP166: Reinforced Library | BR166: 24 | BX166: K - 3 | BZ166: Jill Sherman
C167: =C161 -> 0 | G167: Not Available | I167: 9781681516240 | K167: Los puercoespines (Porcupines) | O167: Animales norteamericanos (North American Animals) | S167: Amicus | U167: 0 | W167: 23.95 | Y167: 0 | AA167: 0 | AG167: 0 | AH167: 0 | AI167: 0 | AJ167: 0 | AK167: 0 | AL167: 0 | AM167: 0 | AN167: 0 | AO167: 0 | AP167: 0 | AQ167: 0 | AR167: 0 | AS167: 0 | AT167: 0 | AU167: 0 | AV167: Fall 2018 | AX167: 2019 | AZ167: 599.35/97 | BD167: 50 | BF167: 34.25 | BH167: Amicus High Interest | BJ167: 3.2 | BL167: Animals | BN167: Spanish | BP167: Reinforced Library | BR167: 24 | BX167: K - 3 | BZ167: Jill Sherman
K169: Complete Series of 6 | O169: Animals Measure Up | U169: =SUM(U170:U175) -> 294 | W169: =SUM(W170:W175) -> 143.7 | Y169: =SUM(Y170:Y175) -> 173.7
A170: =A169 -> 0 | C170: =C169 -> 0 | E170: =E169 -> 0 | G170: 9781681514666 | I170: 9781681513843 | K170: How Deep in the Ocean?: Ocean Animal Habitats | O170: Animals Measure Up | S170: Amicus | U170: 49 | W170: 23.95 | Y170: =W170+5 -> 28.95 | AA170: =IF(AC170=FALSE,AT170,0) -> 0 | AG170: =IF(AND(A170>=1,AC170=""),A170,0) -> 0 | AH170: =IF(AND(A170>=1,AC170="x"),A170,0) -> 0 | AI170: =IF(AND(A170>=1,AC170=""),U170,0) -> 0 | AJ170: =IF(AND(A170>=1,AC170="x"),-U170,0) -> 0 | AK170: =IF(AND(C170>=1,AC170=""),C170,0) -> 0 | AL170: =IF(AND(C170>=1,AC170="x"),C170,0) -> 0 | AM170: =IF(AND(C170>=1,AC170=""),W170*C170,0) -> 0 | AN170: =IF(AND(C170>=1,AC170="x"),-W170*C170,0) -> 0 | AO170: =E170 -> 0 | AP170: =Y170*E170 -> 0 | AQ170: =AG170+AK170+AO170 -> 0 | AR170: =AH170+AL170 -> 0 | AS170: =AQ170+AR170 -> 0 | AT170: =AI170+AM170+AP170 -> 0 | AU170: =AJ170+AN170 -> 0 | AV170: Fall 2018 | AX170: 2019 | AZ170: 578.77 | BD170: 39 | BF170: 34.25 | BH170: Amicus Illustrated | BL170: Animals | BN170: English | BP170: Reinforced Library | BR170: 24 | BT170: J | BV170: 520L | BX170: K - 3 | BZ170: Monika Davies
A171: =A169 -> 0 | C171: =C169 -> 0 | E171: =E169 -> 0 | G171: 9781681514673 | I171: 9781681513850 | K171: How Far Home?: Animal Migrations | O171: Animals Measure Up | S171: Amicus | U171: 49 | W171: 23.95 | Y171: 28.95 | AA171: 0 | AG171: 0 | AH171: 0 | AI171: 0 | AJ171: 0 | AK171: 0 | AL171: 0 | AM171: 0 | AN171: 0 | AO171: 0 | AP171: 0 | AQ171: 0 | AR171: 0 | AS171: 0 | AT171: 0 | AU171: 0 | AV171: Fall 2018 | AX171: 2019 | AZ171: 591.56/8 | BD171: 39 | BF171: 34.25 | BH171: Amicus Illustrated | BL171: Animals | BN171: English | BP171: Reinforced Library | BR171: 24 | BT171: J | BV171: 530L | BX171: K - 3 | BZ171: Monika Davies
A172: =A169 -> 0 | C172: =C169 -> 0 | E172: =E169 -> 0 | G172: 9781681514680 | I172: 9781681513867 | K172: How Far Underground?: Burrowing Animals | O172: Animals Measure Up | S172: Amicus | U172: 49 | W172: 23.95 | Y172: 28.95 | AA172: 0 | AG172: 0 | AH172: 0 | AI172: 0 | AJ172: 0 | AK172: 0 | AL172: 0 | AM172: 0 | AN172: 0 | AO172: 0 | AP172: 0 | AQ172: 0 | AR172: 0 | AS172: 0 | AT172: 0 | AU172: 0 | AV172: Fall 2018 | AX172: 2019 | AZ172: 591.56/48 | BD172: 39 | BF172: 34.25 | BH172: Amicus Illustrated | BL172: Animals | BN172: English | BP172: Reinforced Library | BR172: 24 | BT172: J | BV172: 560L | BX172: K - 3 | BZ172: Monika Davies
A173: =A169 -> 0 | C173: =C169 -> 0 | E173: =E169 -> 0 | G173: 9781681514697 | I173: 9781681513874 | K173: How High in the Rainforest?: Rainforest Animal Habitats | O173: Animals Measure Up | S173: Amicus | U173: 49 | W173: 23.95 | Y173: 28.95 | AA173: 0 | AG173: 0 | AH173: 0 | AI173: 0 | AJ173: 0 | AK173: 0 | AL173: 0 | AM173: 0 | AN173: 0 | AO173: 0 | AP173: 0 | AQ173: 0 | AR173: 0 | AS173: 0 | AT173: 0 | AU173: 0 | AV173: Fall 2018 | AX173: 2019 | AZ173: 577.34 | BD173: 39 | BF173: 34.25 | BH173: Amicus Illustrated | BL173: Animals | BN173: English | BP173: Reinforced Library | BR173: 24 | BT173: J | BV173: 520L | BX173: K - 3 | BZ173: Monika Davies
A174: =A169 -> 0 | C174: =C169 -> 0 | E174: =E169 -> 0 | G174: 9781681514703 | I174: 9781681513881 | K174: How High in the Sky?: Flying Animals | O174: Animals Measure Up | S174: Amicus | U174: 49 | W174: 23.95 | Y174: 28.95 | AA174: 0 | AG174: 0 | AH174: 0 | AI174: 0 | AJ174: 0 | AK174: 0 | AL174: 0 | AM174: 0 | AN174: 0 | AO174: 0 | AP174: 0 | AQ174: 0 | AR174: 0 | AS174: 0 | AT174: 0 | AU174: 0 | AV174: Fall 2018 | AX174: 2019 | AZ174: 591.47/9 | BD174: 39 | BF174: 34.25 | BH174: Amicus Illustrated | BL174: Animals | BN174: English | BP174: Reinforced Library | BR174: 24 | BT174: J | BV174: 550L | BX174: K - 3 | BZ174: Monika Davies
A175: =A169 -> 0 | C175: =C169 -> 0 | E175: =E169 -> 0 | G175: 9781681514710 | I175: 9781681513898 | K175: How High up the Mountain?: Mountain Animal Habitats | O175: Animals Measure Up | S175: Amicus | U175: 49 | W175: 23.95 | Y175: 28.95 | AA175: 0 | AG175: 0 | AH175: 0 | AI175: 0 | AJ175: 0 | AK175: 0 | AL175: 0 | AM175: 0 | AN175: 0 | AO175: 0 | AP175: 0 | AQ175: 0 | AR175: 0 | AS175: 0 | AT175: 0 | AU175: 0 | AV175: Fall 2018 | AX175: 2019 | AZ175: 577.5/3 | BD175: 39 | BF175: 34.25 | BH175: Amicus Illustrated | BL175: Animals | BN175: English | BP175: Reinforced Library | BR175: 24 | BT175: J | BV175: 520L | BX175: K - 3 | BZ175: Monika Davies
K177: Complete Series of 5 | O177: Animals with Jobs | U177: =SUM(U178:U182) -> 0 | W177: =SUM(W178:W182) -> 124.75 | Y177: =SUM(Y178:Y182) -> 0
C178: =C177 -> 0 | G178: Not Available | I178: 9781607533788 | K178: Bomb Sniffing Dogs | O178: Animals with Jobs | S178: Amicus | U178: 0 | W178: 24.95 | Y178: 0 | AA178: =IF(AC178=FALSE,AT178,0) -> 0 | AG178: =IF(AND(A178>=1,AC178=""),A178,0) -> 0 | AH178: =IF(AND(A178>=1,AC178="x"),A178,0) -> 0 | AI178: =IF(AND(A178>=1,AC178=""),U178,0) -> 0 | AJ178: =IF(AND(A178>=1,AC178="x"),-U178,0) -> 0 | AK178: =IF(AND(C178>=1,AC178=""),C178,0) -> 0 | AL178: =IF(AND(C178>=1,AC178="x"),C178,0) -> 0 | AM178: =IF(AND(C178>=1,AC178=""),W178*C178,0) -> 0 | AN178: =IF(AND(C178>=1,AC178="x"),-W178*C178,0) -> 0 | AO178: =E178 -> 0 | AP178: =Y178*E178 -> 0 | AQ178: =AG178+AK178+AO178 -> 0 | AR178: =AH178+AL178 -> 0 | AS178: =AQ178+AR178 -> 0 | AT178: =AI178+AM178+AP178 -> 0 | AU178: =AJ178+AN178 -> 0 | AV178: Fall 2013 | AX178: 2014 | AZ178: 636.73 | BD178: Website | BF178: 35.7 | BH178: Amicus High Interest | BJ178: 2.9 | BL178: Animals | BN178: English | BP178: Reinforced Library | BR178: 32 | BT178: L | BV178: 520L | BX178: 2 – 5 | BZ178: Ann Weil
C179: =C177 -> 0 | G179: Not Available | I179: 9781607533825 | K179: Guide Dogs | O179: Animals with Jobs | S179: Amicus | U179: 0 | W179: 24.95 | Y179: 0 | AA179: =IF(AC179=FALSE,AT179,0) -> 0 | AG179: =IF(AND(A179>=1,AC179=""),A179,0) -> 0 | AH179: =IF(AND(A179>=1,AC179="x"),A179,0) -> 0 | AI179: =IF(AND(A179>=1,AC179=""),U179,0) -> 0 | AJ179: =IF(AND(A179>=1,AC179="x"),-U179,0) -> 0 | AK179: 0 | AL179: 0 | AM179: 0 | AN179: 0 | AO179: =E179 -> 0 | AP179: =Y179*E179 -> 0 | AQ179: =AG179+AK179+AO179 -> 0 | AR179: =AH179+AL179 -> 0 | AS179: =AQ179+AR179 -> 0 | AT179: =AI179+AM179+AP179 -> 0 | AU179: =AJ179+AN179 -> 0 | AV179: Fall 2013 | AX179: 2014 | AZ179: 362.4/183 | BD179: Website | BF179: 35.7 | BH179: Amicus High Interest | BJ179: 2.9 | BL179: Animals | BN179: English | BP179: Reinforced Library | BR179: 32 | BT179: L | BV179: 570L | BX179: 2 – 5 | BZ179: Elizabeth Raum
C180: =C177 -> 0 | G180: Not Available | I180: 9781607533771 | K180: K9 Police Dogs | O180: Animals with Jobs | S180: Amicus | U180: 0 | W180: 24.95 | Y180: 0 | AA180: =IF(AC180=FALSE,AT180,0) -> 0 | AG180: =IF(AND(A180>=1,AC180=""),A180,0) -> 0 | AH180: =IF(AND(A180>=1,AC180="x"),A180,0) -> 0 | AI180: =IF(AND(A180>=1,AC180=""),U180,0) -> 0 | AJ180: =IF(AND(A180>=1,AC180="x"),-U180,0) -> 0 | AK180: 0 | AL180: 0 | AM180: 0 | AN180: 0 | AO180: =E180 -> 0 | AP180: =Y180*E180 -> 0 | AQ180: =AG180+AK180+AO180 -> 0 | AR180: =AH180+AL180 -> 0 | AS180: =AQ180+AR180 -> 0 | AT180: =AI180+AM180+AP180 -> 0 | AU180: =AJ180+AN180 -> 0 | AV180: Fall 2013 | AX180: 2014 | AZ180: 363.2/32 | BD180: Website | BF180: 35.7 | BH180: Amicus High Interest | BJ180: 3 | BL180: Animals | BN180: English | BP180: Reinforced Library | BR180: 32 | BT180: L | BV180: 520L | BX180: 2 – 5 | BZ180: Elizabeth Raum
C181: =C177 -> 0 | G181: Not Available | I181: 9781607533801 | K181: Search and Rescue Dogs | O181: Animals with Jobs | S181: Amicus | U181: 0 | W181: 24.95 | Y181: 0 | AA181: =IF(AC181=FALSE,AT181,0) -> 0 | AG181: =IF(AND(A181>=1,AC181=""),A181,0) -> 0 | AH181: =IF(AND(A181>=1,AC181="x"),A181,0) -> 0 | AI181: =IF(AND(A181>=1,AC181=""),U181,0) -> 0 | AJ181: =IF(AND(A181>=1,AC181="x"),-U181,0) -> 0 | AK181: 0 | AL181: 0 | AM181: 0 | AN181: 0 | AO181: =E181 -> 0 | AP181: =Y181*E181 -> 0 | AQ181: =AG181+AK181+AO181 -> 0 | AR181: =AH181+AL181 -> 0 | AS181: =AQ181+AR181 -> 0 | AT181: =AI181+AM181+AP181 -> 0 | AU181: =AJ181+AN181 -> 0 | AV181: Fall 2013 | AX181: 2014 | AZ181: 363.7/0886 | BD181: Website | BF181: 35.7 | BH181: Amicus High Interest | BJ181: 3 | BL181: Animals | BN181: English | BP181: Reinforced Library | BR181: 32 | BT181: L | BV181: 540L | BX181: 2 – 5 | BZ181: Connie Colwell Miller
C182: =C177 -> 0 | G182: Not Available | I182: 9781607533818 | K182: Therapy Animals | O182: Animals with Jobs | S182: Amicus | U182: 0 | W182: 24.95 | Y182: 0 | AA182: =IF(AC182=FALSE,AT182,0) -> 0 | AG182: =IF(AND(A182>=1,AC182=""),A182,0) -> 0 | AH182: =IF(AND(A182>=1,AC182="x"),A182,0) -> 0 | AI182: =IF(AND(A182>=1,AC182=""),U182,0) -> 0 | AJ182: =IF(AND(A182>=1,AC182="x"),-U182,0) -> 0 | AK182: 0 | AL182: 0 | AM182: 0 | AN182: 0 | AO182: =E182 -> 0 | AP182: =Y182*E182 -> 0 | AQ182: =AG182+AK182+AO182 -> 0 | AR182: =AH182+AL182 -> 0 | AS182: =AQ182+AR182 -> 0 | AT182: =AI182+AM182+AP182 -> 0 | AU182: =AJ182+AN182 -> 0 | AV182: Fall 2013 | AX182: 2014 | AZ182: 615.8/5158 | BD182: Website | BF182: 35.7 | BH182: Amicus High Interest | BJ182: 3.1 | BL182: Animals | BN182: English | BP182: Reinforced Library | BR182: 32 | BT182: L | BV182: 560L | BX182: 2 – 5 | BZ182: Connie Colwell Miller
K184: Complete Series of 4 | O184: Be Safe! | U184: =SUM(U185:U188) -> 0 | W184: =SUM(W185:W188) -> 95.8 | Y184: =SUM(Y185:Y188) -> 0
C185: =C184 -> 0 | G185: Not Available | I185: 9781607534440 | K185: Be Safe around Fire | O185: Be Safe! | S185: Amicus | U185: 0 | W185: 23.95 | Y185: 0 | AA185: =IF(AC185=FALSE,AT185,0) -> 0 | AG185: =IF(AND(A185>=1,AC185=""),A185,0) -> 0 | AH185: =IF(AND(A185>=1,AC185="x"),A185,0) -> 0 | AI185: =IF(AND(A185>=1,AC185=""),U185,0) -> 0 | AJ185: =IF(AND(A185>=1,AC185="x"),-U185,0) -> 0 | AK185: =IF(AND(C185>=1,AC185=""),C185,0) -> 0 | AL185: =IF(AND(C185>=1,AC185="x"),C185,0) -> 0 | AM185: =IF(AND(C185>=1,AC185=""),W185*C185,0) -> 0 | AN185: =IF(AND(C185>=1,AC185="x"),-W185*C185,0) -> 0 | AO185: =E185 -> 0 | AP185: =Y185*E185 -> 0 | AQ185: =AG185+AK185+AO185 -> 0 | AR185: =AH185+AL185 -> 0 | AS185: =AQ185+AR185 -> 0 | AT185: =AI185+AM185+AP185 -> 0 | AU185: =AJ185+AN185 -> 0 | AV185: Fall 2014 | AX185: 2015 | AZ185: 613.6 | BD185: 42 | BF185: 34.25 | BH185: Amicus Illustrated | BJ185: 2.7 | BL185: Health | BN185: English | BP185: Reinforced Library | BR185: 24 | BT185: I | BV185: 510L | BX185: 2 – 5 | BZ185: Bridget Heos
C186: =C184 -> 0 | G186: Not Available | I186: 9781607534471 | K186: Be Safe around Strangers | O186: Be Safe! | S186: Amicus | U186: 0 | W186: 23.95 | Y186: 0 | AA186: =IF(AC186=FALSE,AT186,0) -> 0 | AG186: =IF(AND(A186>=1,AC186=""),A186,0) -> 0 | AH186: =IF(AND(A186>=1,AC186="x"),A186,0) -> 0 | AI186: =IF(AND(A186>=1,AC186=""),U186,0) -> 0 | AJ186: =IF(AND(A186>=1,AC186="x"),-U186,0) -> 0 | AK186: 0 | AL186: 0 | AM186: 0 | AN186: 0 | AO186: =E186 -> 0 | AP186: =Y186*E186 -> 0 | AQ186: =AG186+AK186+AO186 -> 0 | AR186: =AH186+AL186 -> 0 | AS186: =AQ186+AR186 -> 0 | AT186: =AI186+AM186+AP186 -> 0 | AU186: =AJ186+AN186 -> 0 | AV186: Fall 2014 | AX186: 2015 | AZ186: 613.60835 | BD186: 42 | BF186: 34.25 | BH186: Amicus Illustrated | BJ186: 2.5 | BL186: Health | BN186: English | BP186: Reinforced Library | BR186: 24 | BT186: I | BV186: 470L | BX186: 2 – 5 | BZ186: Bridget Heos
C187: =C184 -> 0 | G187: Not Available | I187: 9781607534488 | K187: Be Safe around Water | O187: Be Safe! | S187: Amicus | U187: 0 | W187: 23.95 | Y187: 0 | AA187: =IF(AC187=FALSE,AT187,0) -> 0 | AG187: =IF(AND(A187>=1,AC187=""),A187,0) -> 0 | AH187: =IF(AND(A187>=1,AC187="x"),A187,0) -> 0 | AI187: =IF(AND(A187>=1,AC187=""),U187,0) -> 0 | AJ187: =IF(AND(A187>=1,AC187="x"),-U187,0) -> 0 | AK187: 0 | AL187: 0 | AM187: 0 | AN187: 0 | AO187: =E187 -> 0 | AP187: =Y187*E187 -> 0 | AQ187: =AG187+AK187+AO187 -> 0 | AR187: =AH187+AL187 -> 0 | AS187: =AQ187+AR187 -> 0 | AT187: =AI187+AM187+AP187 -> 0 | AU187: =AJ187+AN187 -> 0 | AV187: Fall 2014 | AX187: 2015 | AZ187: 797.200289 | BD187: 42 | BF187: 34.25 | BH187: Amicus Illustrated | BJ187: 2.4 | BL187: Health | BN187: English | BP187: Reinforced Library | BR187: 24 | BT187: I | BV187: 480L | BX187: 2 – 5 | BZ187: Bridget Heos
C188: =C184 -> 0 | G188: Not Available | I188: 9781607534433 | K188: Be Safe on Your Bike | O188: Be Safe! | S188: Amicus | U188: 0 | W188: 23.95 | Y188: 0 | AA188: =IF(AC188=FALSE,AT188,0) -> 0 | AG188: =IF(AND(A188>=1,AC188=""),A188,0) -> 0 | AH188: =IF(AND(A188>=1,AC188="x"),A188,0) -> 0 | AI188: =IF(AND(A188>=1,AC188=""),U188,0) -> 0 | AJ188: =IF(AND(A188>=1,AC188="x"),-U188,0) -> 0 | AK188: 0 | AL188: 0 | AM188: 0 | AN188: 0 | AO188: =E188 -> 0 | AP188: =Y188*E188 -> 0 | AQ188: =AG188+AK188+AO188 -> 0 | AR188: =AH188+AL188 -> 0 | AS188: =AQ188+AR188 -> 0 | AT188: =AI188+AM188+AP188 -> 0 | AU188: =AJ188+AN188 -> 0 | AV188: Fall 2014 | AX188: 2015 | AZ188: 796.6028/9 | BD188: 42 | BF188: 34.25 | BH188: Amicus Illustrated | BJ188: 2 | BL188: Health | BN188: English | BP188: Reinforced Library | BR188: 24 | BT188: I | BV188: 510L | BX188: 2 – 5 | BZ188: Bridget Heos
K190: Complete Series of 4 | O190: Bilingual Fairy Tales | U190: =SUM(U191:U194) -> 0 | W190: =SUM(W191:W194) -> 99.8 | Y190: =SUM(Y191:Y194) -> 0
C191: =C190 -> 0 | G191: Not Available | I191: 9781607533573 | K191: Princess and the Pea, The/La princesesa y el guisante | O191: Bilingual Fairy Tales | S191: Amicus | U191: 0 | W191: 24.95 | Y191: 0 | AA191: =IF(AC191=FALSE,AT191,0) -> 0 | AG191: =IF(AND(A191>=1,AC191=""),A191,0) -> 0 | AH191: =IF(AND(A191>=1,AC191="x"),A191,0) -> 0 | AI191: =IF(AND(A191>=1,AC191=""),U191,0) -> 0 | AJ191: =IF(AND(A191>=1,AC191="x"),-U191,0) -> 0 | AK191: =IF(AND(C191>=1,AC191=""),C191,0) -> 0 | AL191: =IF(AND(C191>=1,AC191="x"),C191,0) -> 0 | AM191: =IF(AND(C191>=1,AC191=""),W191*C191,0) -> 0 | AN191: =IF(AND(C191>=1,AC191="x"),-W191*C191,0) -> 0 | AO191: =E191 -> 0 | AP191: =Y191*E191 -> 0 | AQ191: =AG191+AK191+AO191 -> 0 | AR191: =AH191+AL191 -> 0 | AS191: =AQ191+AR191 -> 0 | AT191: =AI191+AM191+AP191 -> 0 | AU191: =AJ191+AN191 -> 0 | AV191: Fall 2013 | AX191: 2014 | AZ191: E | BD191: 42 | BF191: 35.7 | BH191: Amicus Illustrated | BJ191: Not Quizzable | BL191: Fiction | BN191: Bilingual | BP191: Reinforced Library | BR191: 32 | BT191: K | BX191: 2 - 4 | BZ191: Adapted by Francesc Boada
C192: =C190 -> 0 | G192: Not Available | I192: 9781607533580 | K192: Puss in Boots/El gato con botas | O192: Bilingual Fairy Tales | S192: Amicus | U192: 0 | W192: 24.95 | Y192: 0 | AA192: =IF(AC192=FALSE,AT192,0) -> 0 | AG192: =IF(AND(A192>=1,AC192=""),A192,0) -> 0 | AH192: =IF(AND(A192>=1,AC192="x"),A192,0) -> 0 | AI192: =IF(AND(A192>=1,AC192=""),U192,0) -> 0 | AJ192: =IF(AND(A192>=1,AC192="x"),-U192,0) -> 0 | AK192: 0 | AL192: 0 | AM192: 0 | AN192: 0 | AO192: =E192 -> 0 | AP192: =Y192*E192 -> 0 | AQ192: =AG192+AK192+AO192 -> 0 | AR192: =AH192+AL192 -> 0 | AS192: =AQ192+AR192 -> 0 | AT192: =AI192+AM192+AP192 -> 0 | AU192: =AJ192+AN192 -> 0 | AV192: Fall 2013 | AX192: 2014 | AZ192: 398.2 E | BD192: 42 | BF192: 35.7 | BH192: Amicus Illustrated | BJ192: Not Quizzable | BL192: Fiction | BN192: Bilingual | BP192: Reinforced Library | BR192: 32 | BT192: M | BX192: 2 - 4 | BZ192: Adapted by Francesc Boada
C193: =C190 -> 0 | G193: Not Available | I193: 9781607533603 | K193: Rapunzel | O193: Bilingual Fairy Tales | S193: Amicus | U193: 0 | W193: 24.95 | Y193: 0 | AA193: =IF(AC193=FALSE,AT193,0) -> 0 | AG193: =IF(AND(A193>=1,AC193=""),A193,0) -> 0 | AH193: =IF(AND(A193>=1,AC193="x"),A193,0) -> 0 | AI193: =IF(AND(A193>=1,AC193=""),U193,0) -> 0 | AJ193: =IF(AND(A193>=1,AC193="x"),-U193,0) -> 0 | AK193: 0 | AL193: 0 | AM193: 0 | AN193: 0 | AO193: =E193 -> 0 | AP193: =Y193*E193 -> 0 | AQ193: =AG193+AK193+AO193 -> 0 | AR193: =AH193+AL193 -> 0 | AS193: =AQ193+AR193 -> 0 | AT193: =AI193+AM193+AP193 -> 0 | AU193: =AJ193+AN193 -> 0 | AV193: Fall 2013 | AX193: 2014 | AZ193: 398.2 E | BD193: 42 | BF193: 35.7 | BH193: Amicus Illustrated | BJ193: Not Quizzable | BL193: Fiction | BN193: Bilingual | BP193: Reinforced Library | BR193: 32 | BT193: K | BX193: 2 - 4 | BZ193: Adapted by Xavier Carrasco
C194: =C190 -> 0 | G194: Not Available | I194: 9781607533597 | K194: Rumpelstiltskin | O194: Bilingual Fairy Tales | S194: Amicus | U194: 0 | W194: 24.95 | Y194: 0 | AA194: =IF(AC194=FALSE,AT194,0) -> 0 | AG194: =IF(AND(A194>=1,AC194=""),A194,0) -> 0 | AH194: =IF(AND(A194>=1,AC194="x"),A194,0) -> 0 | AI194: =IF(AND(A194>=1,AC194=""),U194,0) -> 0 | AJ194: =IF(AND(A194>=1,AC194="x"),-U194,0) -> 0 | AK194: 0 | AL194: 0 | AM194: 0 | AN194: 0 | AO194: =E194 -> 0 | AP194: =Y194*E194 -> 0 | AQ194: =AG194+AK194+AO194 -> 0 | AR194: =AH194+AL194 -> 0 | AS194: =AQ194+AR194 -> 0 | AT194: =AI194+AM194+AP194 -> 0 | AU194: =AJ194+AN194 -> 0 | AV194: Fall 2013 | AX194: 2014 | AZ194: 398.2 E | BD194: 42 | BF194: 35.7 | BH194: Amicus Illustrated | BJ194: Not Quizzable | BL194: Fiction | BN194: Bilingual | BP194: Reinforced Library | BR194: 32 | BT194: K | BX194: 2 - 4 | BZ194: Adaptation by Francesc Bofill
K196: Complete Series of 6 | O196: Clima extremo (Spot Extreme Weather) | U196: =SUM(U197:U202) -> 257.1 | W196: =SUM(W197:W202) -> 125.7 | Y196: =SUM(Y197:Y202) -> 155.7
A197: =A196 -> 0 | C197: =C196 -> 0 | E197: =E196 -> 0 | G197: 9781645492221 | I197: 9781645491965 | K197: Las inundaciones (Floods) | O197: Clima extremo (Spot Extreme Weather) | S197: Amicus | U197: 42.85 | W197: 20.95 | Y197: =W197+5 -> 25.95 | AA197: =IF(AC197=FALSE,AT197,0) -> 0 | AG197: =IF(AND(A197>=1,AC197=""),A197,0) -> 0 | AH197: =IF(AND(A197>=1,AC197="x"),A197,0) -> 0 | AI197: =IF(AND(A197>=1,AC197=""),U197,0) -> 0 | AJ197: =IF(AND(A197>=1,AC197="x"),-U197,0) -> 0 | AK197: =IF(AND(C197>=1,AC197=""),C197,0) -> 0 | AL197: =IF(AND(C197>=1,AC197="x"),C197,0) -> 0 | AM197: =IF(AND(C197>=1,AC197=""),W197*C197,0) -> 0 | AN197: =IF(AND(C197>=1,AC197="x"),-W197*C197,0) -> 0 | AO197: =E197 -> 0 | AP197: =Y197*E197 -> 0 | AQ197: =AG197+AK197+AO197 -> 0 | AR197: =AH197+AL197 -> 0 | AS197: =AQ197+AR197 -> 0 | AT197: =AI197+AM197+AP197 -> 0 | AU197: =AJ197+AN197 -> 0 | AV197: Spring 2021 | AX197: 2021 | AZ197: 551.48/9 | BD197: 49 | BF197: 29.95 | BH197: Spot | BJ197: 1 | BL197: Nature | BN197: Spanish | BP197: Reinforced Library | BR197: 16 | BT197: D | BX197: K & Up | BZ197: Anastasia Suen
A198: =A196 -> 0 | C198: =C196 -> 0 | E198: =E196 -> 0 | G198: 9781645492207 | I198: 9781645491941 | K198: Las ventiscas (Blizzards) | O198: Clima extremo (Spot Extreme Weather) | S198: Amicus | U198: 42.85 | W198: 20.95 | Y198: 25.95 | AA198: 0 | AG198: 0 | AH198: 0 | AI198: 0 | AJ198: 0 | AK198: 0 | AL198: 0 | AM198: 0 | AN198: 0 | AO198: 0 | AP198: 0 | AQ198: 0 | AR198: 0 | AS198: 0 | AT198: 0 | AU198: 0 | AV198: Spring 2021 | AX198: 2021 | AZ198: 551.55/5 | BD198: 49 | BF198: 29.95 | BH198: Spot | BJ198: 1.5 | BL198: Nature | BN198: Spanish | BP198: Reinforced Library | BR198: 16 | BT198: D | BX198: K & Up | BZ198: Anastasia Suen
A199: =A196 -> 0 | C199: =C196 -> 0 | E199: =E196 -> 0 | G199: 9781645492238 | I199: 9781645491972 | K199: Los huracanes (Hurricanes) | O199: Clima extremo (Spot Extreme Weather) | S199: Amicus | U199: 42.85 | W199: 20.95 | Y199: 25.95 | AA199: 0 | AG199: 0 | AH199: 0 | AI199: 0 | AJ199: 0 | AK199: 0 | AL199: 0 | AM199: 0 | AN199: 0 | AO199: 0 | AP199: 0 | AQ199: 0 | AR199: 0 | AS199: 0 | AT199: 0 | AU199: 0 | AV199: Spring 2021 | AX199: 2021 | AZ199: 551.55/2 | BD199: 49 | BF199: 29.95 | BH199: Spot | BJ199: 0.8 | BL199: Nature | BN199: Spanish | BP199: Reinforced Library | BR199: 16 | BT199: D | BX199: K & Up | BZ199: Anastasia Suen
A200: =A196 -> 0 | C200: =C196 -> 0 | E200: =E196 -> 0 | G200: 9781645492252 | I200: 9781645491996 | K200: Los incendios forestales (Forest Fires) | O200: Clima extremo (Spot Extreme Weather) | S200: Amicus | U200: 42.85 | W200: 20.95 | Y200: 25.95 | AA200: 0 | AG200: 0 | AH200: 0 | AI200: 0 | AJ200: 0 | AK200: 0 | AL200: 0 | AM200: 0 | AN200: 0 | AO200: 0 | AP200: 0 | AQ200: 0 | AR200: 0 | AS200: 0 | AT200: 0 | AU200: 0 | AV200: Spring 2021 | AX200: 2021 | AZ200: 634.9/618 | BD200: 49 | BF200: 29.95 | BH200: Spot | BJ200: 1.7 | BL200: Nature | BN200: Spanish | BP200: Reinforced Library | BR200: 16 | BT200: D | BX200: K & Up | BZ200: Anastasia Suen
A201: =A196 -> 0 | C201: =C196 -> 0 | E201: =E196 -> 0 | G201: 9781645492214 | I201: 9781645491958 | K201: Los terremotos (Earthquakes) | O201: Clima extremo (Spot Extreme Weather) | S201: Amicus | U201: 42.85 | W201: 20.95 | Y201: 25.95 | AA201: 0 | AG201: 0 | AH201: 0 | AI201: 0 | AJ201: 0 | AK201: 0 | AL201: 0 | AM201: 0 | AN201: 0 | AO201: 0 | AP201: 0 | AQ201: 0 | AR201: 0 | AS201: 0 | AT201: 0 | AU201: 0 | AV201: Spring 2021 | AX201: 2021 | AZ201: 551.22 | BD201: 49 | BF201: 29.95 | BH201: Spot | BJ201: 1.1 | BL201: Nature | BN201: Spanish | BP201: Reinforced Library | BR201: 16 | BT201: D | BX201: K & Up | BZ201: Anastasia Suen
A202: =A196 -> 0 | C202: =C196 -> 0 | E202: =E196 -> 0 | G202: 9781645492245 | I202: 9781645491989 | K202: Los tornados (Tornadoes) | O202: Clima extremo (Spot Extreme Weather) | S202: Amicus | U202: 42.85 | W202: 20.95 | Y202: 25.95 | AA202: 0 | AG202: 0 | AH202: 0 | AI202: 0 | AJ202: 0 | AK202: 0 | AL202: 0 | AM202: 0 | AN202: 0 | AO202: 0 | AP202: 0 | AQ202: 0 | AR202: 0 | AS202: 0 | AT202: 0 | AU202: 0 | AV202: Spring 2021 | AX202: 2021 | AZ202: 551.55/3 | BD202: 49 | BF202: 29.95 | BH202: Spot | BJ202: 0.8 | BL202: Nature | BN202: Spanish | BP202: Reinforced Library | BR202: 16 | BT202: D | BX202: K & Up | BZ202: Anastasia Suen
K204: Complete NEW Series of 6 | O204: Curiosidad por los vehículos geniales (Curious about Cool Rides) | U204: =SUM(U205:U210) -> 294 | W204: =SUM(W205:W210) -> 143.7 | Y204: =SUM(Y205:Y210) -> 173.7
A205: =A204 -> 0 | C205: =C204 -> 0 | E205: =E204 -> 0 | G205: 9781645494652 | I205: 9781645494591 | K205: Curiosidad por autos de IndyCar (Curiosity about Indy Cars) | O205: Curiosidad por los vehículos geniales (Curious about Cool Rides) | S205: Amicus | U205: 49 | W205: 23.95 | Y205: =W205+5 -> 28.95 | AA205: =IF(AC205=FALSE,AT205,0) -> 0 | AG205: =IF(AND(A205>=1,AC205=""),A205,0) -> 0 | AH205: =IF(AND(A205>=1,AC205="x"),A205,0) -> 0 | AI205: =IF(AND(A205>=1,AC205=""),U205,0) -> 0 | AJ205: =IF(AND(A205>=1,AC205="x"),-U205,0) -> 0 | AK205: =IF(AND(C205>=1,AC205=""),C205,0) -> 0 | AL205: =IF(AND(C205>=1,AC205="x"),C205,0) -> 0 | AM205: =IF(AND(C205>=1,AC205=""),W205*C205,0) -> 0 | AN205: =IF(AND(C205>=1,AC205="x"),-W205*C205,0) -> 0 | AO205: =E205 -> 0 | AP205: =Y205*E205 -> 0 | AQ205: =AG205+AK205+AO205 -> 0 | AR205: =AH205+AL205 -> 0 | AS205: =AQ205+AR205 -> 0 | AT205: =AI205+AM205+AP205 -> 0 | AU205: =AJ205+AN205 -> 0 | AV205: Fall 2022 | AX205: 2023 | AZ205: 629.228/5 | BD205: 49 | BF205: 34.25 | BH205: Curious About | BL205: Technology & Engineering | BN205: Spanish | BP205: Reinforced Library | BR205: 24 | BX205: 1 - 4 | BZ205: Rachel Grack
A206: =A204 -> 0 | C206: =C204 -> 0 | E206: =E204 -> 0 | G206: 9781645494638 | I206: 9781645494577 | K206: Curiosidad por los dragsters (Curiosity about Dragsters) | O206: Curiosidad por los vehículos geniales (Curious about Cool Rides) | S206: Amicus | U206: 49 | W206: 23.95 | Y206: 28.95 | AA206: 0 | AG206: 0 | AH206: 0 | AI206: 0 | AJ206: 0 | AK206: 0 | AL206: 0 | AM206: 0 | AN206: 0 | AO206: 0 | AP206: 0 | AQ206: 0 | AR206: 0 | AS206: 0 | AT206: 0 | AU206: 0 | AV206: Fall 2022 | AX206: 2023 | AZ206: 629.228/6 | BD206: 49 | BF206: 34.25 | BH206: Curious About | BL206: Technology & Engineering | BN206: Spanish | BP206: Reinforced Library | BR206: 24 | BX206: 1 - 4 | BZ206: Rachel Grack
A207: =A204 -> 0 | C207: =C204 -> 0 | E207: =E204 -> 0 | G207: 9781645494645 | I207: 9781645494584 | K207: Curiosidad por los hot rods (Curiosity about Hot Rods) | O207: Curiosidad por los vehículos geniales (Curious about Cool Rides) | S207: Amicus | U207: 49 | W207: 23.95 | Y207: 28.95 | AA207: 0 | AG207: 0 | AH207: 0 | AI207: 0 | AJ207: 0 | AK207: 0 | AL207: 0 | AM207: 0 | AN207: 0 | AO207: 0 | AP207: 0 | AQ207: 0 | AR207: 0 | AS207: 0 | AT207: 0 | AU207: 0 | AV207: Fall 2022 | AX207: 2023 | AZ207: 629.228/5 | BD207: 49 | BF207: 34.25 | BH207: Curious About | BL207: Technology & Engineering | BN207: Spanish | BP207: Reinforced Library | BR207: 24 | BX207: 1 - 4 | BZ207: Rachel Grack
A208: =A204 -> 0 | C208: =C204 -> 0 | E208: =E204 -> 0 | G208: 9781645494669 | I208: 9781645494607 | K208: Curiosidad por los lowriders (Curiosity about Lowriders) | O208: Curiosidad por los vehículos geniales (Curious about Cool Rides) | S208: Amicus | U208: 49 | W208: 23.95 | Y208: 28.95 | AA208: 0 | AG208: 0 | AH208: 0 | AI208: 0 | AJ208: 0 | AK208: 0 | AL208: 0 | AM208: 0 | AN208: 0 | AO208: 0 | AP208: 0 | AQ208: 0 | AR208: 0 | AS208: 0 | AT208: 0 | AU208: 0 | AV208: Fall 2022 | AX208: 2023 | AZ208: 629.222 | BD208: 49 | BF208: 34.25 | BH208: Curious About | BL208: Technology & Engineering | BN208: Spanish | BP208: Reinforced Library | BR208: 24 | BX208: 1 - 4 | BZ208: Rachel Grack
A209: =A204 -> 0 | C209: =C204 -> 0 | E209: =E204 -> 0 | G209: 9781645494676 | I209: 9781645494614 | K209: Curiosidad por los monster trucks (Curiosity about Monster Trucks) | O209: Curiosidad por los vehículos geniales (Curious about Cool Rides) | S209: Amicus | U209: 49 | W209: 23.95 | Y209: 28.95 | AA209: 0 | AG209: 0 | AH209: 0 | AI209: 0 | AJ209: 0 | AK209: 0 | AL209: 0 | AM209: 0 | AN209: 0 | AO209: 0 | AP209: 0 | AQ209: 0 | AR209: 0 | AS209: 0 | AT209: 0 | AU209: 0 | AV209: Fall 2022 | AX209: 2023 | AZ209: 629.224 | BD209: 49 | BF209: 34.25 | BH209: Curious About | BL209: Technology & Engineering | BN209: Spanish | BP209: Reinforced Library | BR209: 24 | BX209: 1 - 4 | BZ209: Rachel Grack
A210: =A204 -> 0 | C210: =C204 -> 0 | E210: =E204 -> 0 | G210: 9781645494683 | I210: 9781645494621 | K210: Curiosidad por los stock cars (Curiosity about Stock Cars) | O210: Curiosidad por los vehículos geniales (Curious about Cool Rides) | S210: Amicus | U210: 49 | W210: 23.95 | Y210: 28.95 | AA210: 0 | AG210: 0 | AH210: 0 | AI210: 0 | AJ210: 0 | AK210: 0 | AL210: 0 | AM210: 0 | AN210: 0 | AO210: 0 | AP210: 0 | AQ210: 0 | AR210: 0 | AS210: 0 | AT210: 0 | AU210: 0 | AV210: Fall 2022 | AX210: 2023 | AZ210: 629.228/5 | BD210: 49 | BF210: 34.25 | BH210: Curious About | BL210: Technology & Engineering | BN210: Spanish | BP210: Reinforced Library | BR210: 24 | BX210: 1 - 4 | BZ210: Rachel Grack
K212: Complete NEW Series of 6 | O212: Curious about Cool Rides | U212: =SUM(U213:U218) -> 294 | W212: =SUM(W213:W218) -> 143.7 | Y212: =SUM(Y213:Y218) -> 173.7
A213: =A212 -> 0 | C213: =C212 -> 0 | E213: =E212 -> 0 | G213: 9781645491569 | I213: 9781645491149 | K213: Curious about Dragsters | O213: Curious about Cool Rides | S213: Amicus | U213: 49 | W213: 23.95 | Y213: =W213+5 -> 28.95 | AA213: =IF(AC213=FALSE,AT213,0) -> 0 | AG213: =IF(AND(A213>=1,AC213=""),A213,0) -> 0 | AH213: =IF(AND(A213>=1,AC213="x"),A213,0) -> 0 | AI213: =IF(AND(A213>=1,AC213=""),U213,0) -> 0 | AJ213: =IF(AND(A213>=1,AC213="x"),-U213,0) -> 0 | AK213: =IF(AND(C213>=1,AC213=""),C213,0) -> 0 | AL213: =IF(AND(C213>=1,AC213="x"),C213,0) -> 0 | AM213: =IF(AND(C213>=1,AC213=""),W213*C213,0) -> 0 | AN213: =IF(AND(C213>=1,AC213="x"),-W213*C213,0) -> 0 | AO213: =E213 -> 0 | AP213: =Y213*E213 -> 0 | AQ213: =AG213+AK213+AO213 -> 0 | AR213: =AH213+AL213 -> 0 | AS213: =AQ213+AR213 -> 0 | AT213: =AI213+AM213+AP213 -> 0 | AU213: =AJ213+AN213 -> 0 | AV213: Fall 2022 | AX213: 2023 | AZ213: 629.228/5 | BD213: 26 | BF213: 34.25 | BH213: Curious About | BL213: Technology & Engineering | BN213: English | BP213: Reinforced Library | BR213: 24 | BT213: K | BX213: 1 - 4 | BZ213: Rachel Grack
A214: =A212 -> 0 | C214: =C212 -> 0 | E214: =E212 -> 0 | G214: 9781645491576 | I214: 9781645491156 | K214: Curious about Hot Rods | O214: Curious about Cool Rides | S214: Amicus | U214: 49 | W214: 23.95 | Y214: 28.95 | AA214: 0 | AG214: 0 | AH214: 0 | AI214: 0 | AJ214: 0 | AK214: 0 | AL214: 0 | AM214: 0 | AN214: 0 | AO214: 0 | AP214: 0 | AQ214: 0 | AR214: 0 | AS214: 0 | AT214: 0 | AU214: 0 | AV214: Fall 2022 | AX214: 2023 | AZ214: 629.228/6 | BD214: 26 | BF214: 34.25 | BH214: Curious About | BL214: Technology & Engineering | BN214: English | BP214: Reinforced Library | BR214: 24 | BT214: K | BX214: 1 - 4 | BZ214: Rachel Grack
A215: =A212 -> 0 | C215: =C212 -> 0 | E215: =E212 -> 0 | G215: 9781645491583 | I215: 9781645491163 | K215: Curious about Indy Cars | O215: Curious about Cool Rides | S215: Amicus | U215: 49 | W215: 23.95 | Y215: 28.95 | AA215: 0 | AG215: 0 | AH215: 0 | AI215: 0 | AJ215: 0 | AK215: 0 | AL215: 0 | AM215: 0 | AN215: 0 | AO215: 0 | AP215: 0 | AQ215: 0 | AR215: 0 | AS215: 0 | AT215: 0 | AU215: 0 | AV215: Fall 2022 | AX215: 2023 | AZ215: 629.228/5 | BD215: 26 | BF215: 34.25 | BH215: Curious About | BL215: Technology & Engineering | BN215: English | BP215: Reinforced Library | BR215: 24 | BT215: K | BX215: 1 - 4 | BZ215: Rachel Grack
A216: =A212 -> 0 | C216: =C212 -> 0 | E216: =E212 -> 0 | G216: 9781645491590 | I216: 9781645491170 | K216: Curious about Lowriders | O216: Curious about Cool Rides | S216: Amicus | U216: 49 | W216: 23.95 | Y216: 28.95 | AA216: 0 | AG216: 0 | AH216: 0 | AI216: 0 | AJ216: 0 | AK216: 0 | AL216: 0 | AM216: 0 | AN216: 0 | AO216: 0 | AP216: 0 | AQ216: 0 | AR216: 0 | AS216: 0 | AT216: 0 | AU216: 0 | AV216: Fall 2022 | AX216: 2023 | AZ216: 629.222 | BD216: 26 | BF216: 34.25 | BH216: Curious About | BL216: Technology & Engineering | BN216: English | BP216: Reinforced Library | BR216: 24 | BT216: K | BX216: 1 - 4 | BZ216: Rachel Grack
A217: =A212 -> 0 | C217: =C212 -> 0 | E217: =E212 -> 0 | G217: 9781645491606 | I217: 9781645491187 | K217: Curious about Monster Trucks | O217: Curious about Cool Rides | S217: Amicus | U217: 49 | W217: 23.95 | Y217: 28.95 | AA217: 0 | AG217: 0 | AH217: 0 | AI217: 0 | AJ217: 0 | AK217: 0 | AL217: 0 | AM217: 0 | AN217: 0 | AO217: 0 | AP217: 0 | AQ217: 0 | AR217: 0 | AS217: 0 | AT217: 0 | AU217: 0 | AV217: Fall 2022 | AX217: 2023 | AZ217: 629.224 | BD217: 26 | BF217: 34.25 | BH217: Curious About | BL217: Technology & Engineering | BN217: English | BP217: Reinforced Library | BR217: 24 | BT217: K | BX217: 1 - 4 | BZ217: Rachel Grack
A218: =A212 -> 0 | C218: =C212 -> 0 | E218: =E212 -> 0 | G218: 9781645491613 | I218: 9781645491194 | K218: Curious about Stock Cars | O218: Curious about Cool Rides | S218: Amicus | U218: 49 | W218: 23.95 | Y218: 28.95 | AA218: 0 | AG218: 0 | AH218: 0 | AI218: 0 | AJ218: 0 | AK218: 0 | AL218: 0 | AM218: 0 | AN218: 0 | AO218: 0 | AP218: 0 | AQ218: 0 | AR218: 0 | AS218: 0 | AT218: 0 | AU218: 0 | AV218: Fall 2022 | AX218: 2023 | AZ218: 629.228/5 | BD218: 26 | BF218: 34.25 | BH218: Curious About | BL218: Technology & Engineering | BN218: English | BP218: Reinforced Library | BR218: 24 | BT218: K | BX218: 1 - 4 | BZ218: Rachel Grack
K220: Complete Series of 8 | O220: Curious about Outer Space | U220: =SUM(U221:U228) -> 392 | W220: =SUM(W221:W228) -> 191.6 | Y220: =SUM(Y221:Y228) -> 231.6
A221: =A220 -> 0 | C221: =C220 -> 0 | E221: =E220 -> 0 | G221: 9781645490579 | I221: 9781681519722 | K221: Curious about Jupiter | O221: Curious about Outer Space | S221: Amicus | U221: 49 | W221: 23.95 | Y221: =W221+5 -> 28.95 | AA221: =IF(AC221=FALSE,AT221,0) -> 0 | AG221: =IF(AND(A221>=1,AC221=""),A221,0) -> 0 | AH221: =IF(AND(A221>=1,AC221="x"),A221,0) -> 0 | AI221: =IF(AND(A221>=1,AC221=""),U221,0) -> 0 | AJ221: =IF(AND(A221>=1,AC221="x"),-U221,0) -> 0 | AK221: =IF(AND(C221>=1,AC221=""),C221,0) -> 0 | AL221: =IF(AND(C221>=1,AC221="x"),C221,0) -> 0 | AM221: =IF(AND(C221>=1,AC221=""),W221*C221,0) -> 0 | AN221: =IF(AND(C221>=1,AC221="x"),-W221*C221,0) -> 0 | AO221: =E221 -> 0 | AP221: =Y221*E221 -> 0 | AQ221: =AG221+AK221+AO221 -> 0 | AR221: =AH221+AL221 -> 0 | AS221: =AQ221+AR221 -> 0 | AT221: =AI221+AM221+AP221 -> 0 | AU221: =AJ221+AN221 -> 0 | AV221: Spring 2022 | AX221: 2022 | AZ221: 523.45 | BD221: 28 | BF221: 34.25 | BH221: Curious About | BL221: Science | BN221: English | BP221: Reinforced Library | BR221: 24 | BT221: K | BX221: 1 - 4 | BZ221: Rachel Grack
A222: =A220 -> 0 | C222: =C220 -> 0 | E222: =E220 -> 0 | G222: 9781645490586 | I222: 9781681519739 | K222: Curious about Mars | O222: Curious about Outer Space | S222: Amicus | U222: 49 | W222: 23.95 | Y222: =W222+5 -> 28.95 | AA222: 0 | AG222: 0 | AH222: 0 | AI222: 0 | AJ222: 0 | AK222: 0 | AL222: 0 | AM222: 0 | AN222: 0 | AO222: 0 | AP222: 0 | AQ222: 0 | AR222: 0 | AS222: 0 | AT222: 0 | AU222: 0 | AV222: Spring 2022 | AX222: 2022 | AZ222: 523.43 | BD222: 28 | BF222: 34.25 | BH222: Curious About | BL222: Science | BN222: English | BP222: Reinforced Library | BR222: 24 | BT222: K | BX222: 1 - 4 | BZ222: Rachel Grack
A223: =A220 -> 0 | C223: =C220 -> 0 | E223: =E220 -> 0 | G223: 9781645490593 | I223: 9781681519746 | K223: Curious about Mercury | O223: Curious about Outer Space | S223: Amicus | U223: 49 | W223: 23.95 | Y223: 28.95 | AA223: 0 | AG223: 0 | AH223: 0 | AI223: 0 | AJ223: 0 | AK223: 0 | AL223: 0 | AM223: 0 | AN223: 0 | AO223: 0 | AP223: 0 | AQ223: 0 | AR223: 0 | AS223: 0 | AT223: 0 | AU223: 0 | AV223: Spring 2022 | AX223: 2022 | AZ223: 523.41 | BD223: 28 | BF223: 34.25 | BH223: Curious About | BL223: Science | BN223: English | BP223: Reinforced Library | BR223: 24 | BT223: K | BX223: 1 - 4 | BZ223: Rachel Grack
A224: =A220 -> 0 | C224: =C220 -> 0 | E224: =E220 -> 0 | G224: 9781645490609 | I224: 9781681519753 | K224: Curious about Neptune | O224: Curious about Outer Space | S224: Amicus | U224: 49 | W224: 23.95 | Y224: 28.95 | AA224: 0 | AG224: 0 | AH224: 0 | AI224: 0 | AJ224: 0 | AK224: 0 | AL224: 0 | AM224: 0 | AN224: 0 | AO224: 0 | AP224: 0 | AQ224: 0 | AR224: 0 | AS224: 0 | AT224: 0 | AU224: 0 | AV224: Spring 2022 | AX224: 2022 | AZ224: 523.48 | BD224: 28 | BF224: 34.25 | BH224: Curious About | BL224: Science | BN224: English | BP224: Reinforced Library | BR224: 24 | BT224: K | BX224: 1 - 4 | BZ224: Rachel Grack
A225: =A220 -> 0 | C225: =C220 -> 0 | E225: =E220 -> 0 | G225: 9781645490616 | I225: 9781681519760 | K225: Curious about Saturn | O225: Curious about Outer Space | S225: Amicus | U225: 49 | W225: 23.95 | Y225: 28.95 | AA225: 0 | AG225: 0 | AH225: 0 | AI225: 0 | AJ225: 0 | AK225: 0 | AL225: 0 | AM225: 0 | AN225: 0 | AO225: 0 | AP225: 0 | AQ225: 0 | AR225: 0 | AS225: 0 | AT225: 0 | AU225: 0 | AV225: Spring 2022 | AX225: 2022 | AZ225: 523.46 | BD225: 28 | BF225: 34.25 | BH225: Curious About | BL225: Science | BN225: English | BP225: Reinforced Library | BR225: 24 | BT225: K | BX225: 1 - 4 | BZ225: Gillia M. Olson
A226: =A220 -> 0 | C226: =C220 -> 0 | E226: =E220 -> 0 | G226: 9781645490562 | I226: 9781681519715 | K226: Curious about the Moon | O226: Curious about Outer Space | S226: Amicus | U226: 49 | W226: 23.95 | Y226: 28.95 | AA226: 0 | AG226: 0 | AH226: 0 | AI226: 0 | AJ226: 0 | AK226: 0 | AL226: 0 | AM226: 0 | AN226: 0 | AO226: 0 | AP226: 0 | AQ226: 0 | AR226: 0 | AS226: 0 | AT226: 0 | AU226: 0 | AV226: Spring 2022 | AX226: 2022 | AZ226: 523.3 | BD226: 28 | BF226: 34.25 | BH226: Curious About | BL226: Science | BN226: English | BP226: Reinforced Library | BR226: 24 | BT226: K | BX226: 1 - 4 | BZ226: Rachel Grack
A227: =A220 -> 0 | C227: =C220 -> 0 | E227: =E220 -> 0 | G227: 9781645490623 | I227: 9781681519777 | K227: Curious about Uranus | O227: Curious about Outer Space | S227: Amicus | U227: 49 | W227: 23.95 | Y227: 28.95 | AA227: 0 | AG227: 0 | AH227: 0 | AI227: 0 | AJ227: 0 | AK227: 0 | AL227: 0 | AM227: 0 | AN227: 0 | AO227: 0 | AP227: 0 | AQ227: 0 | AR227: 0 | AS227: 0 | AT227: 0 | AU227: 0 | AV227: Spring 2022 | AX227: 2022 | AZ227: 523.47 | BD227: 28 | BF227: 34.25 | BH227: Curious About | BL227: Science | BN227: English | BP227: Reinforced Library | BR227: 24 | BT227: K | BX227: 1 - 4 | BZ227: Rachel Grack
A228: =A220 -> 0 | C228: =C220 -> 0 | E228: =E220 -> 0 | G228: 9781645490630 | I228: 9781681519784 | K228: Curious about Venus | O228: Curious about Outer Space | S228: Amicus | U228: 49 | W228: 23.95 | Y228: 28.95 | AA228: 0 | AG228: 0 | AH228: 0 | AI228: 0 | AJ228: 0 | AK228: 0 | AL228: 0 | AM228: 0 | AN228: 0 | AO228: 0 | AP228: 0 | AQ228: 0 | AR228: 0 | AS228: 0 | AT228: 0 | AU228: 0 | AV228: Spring 2022 | AX228: 2022 | AZ228: 523.42 | BD228: 28 | BF228: 34.25 | BH228: Curious About | BL228: Science | BN228: English | BP228: Reinforced Library | BR228: 24 | BT228: K | BX228: 1 - 4 | BZ228: Rachel Grack
K230: Complete Series of 6 | O230: Curious about Pets | U230: =SUM(U231:U236) -> 294 | W230: =SUM(W231:W236) -> 143.7 | Y230: =SUM(Y231:Y236) -> 173.7
A231: =A230 -> 0 | C231: =C230 -> 0 | E231: =E230 -> 0 | G231: 9781645490548 | I231: 9781681519692 | K231: Curious about Birds | O231: Curious about Pets | S231: Amicus | U231: 49 | W231: 23.95 | Y231: =W231+5 -> 28.95 | AA231: =IF(AC231=FALSE,AT231,0) -> 0 | AG231: =IF(AND(A231>=1,AC231=""),A231,0) -> 0 | AH231: =IF(AND(A231>=1,AC231="x"),A231,0) -> 0 | AI231: =IF(AND(A231>=1,AC231=""),U231,0) -> 0 | AJ231: =IF(AND(A231>=1,AC231="x"),-U231,0) -> 0 | AK231: =IF(AND(C231>=1,AC231=""),C231,0) -> 0 | AL231: =IF(AND(C231>=1,AC231="x"),C231,0) -> 0 | AM231: =IF(AND(C231>=1,AC231=""),W231*C231,0) -> 0 | AN231: =IF(AND(C231>=1,AC231="x"),-W231*C231,0) -> 0 | AO231: =E231 -> 0 | AP231: =Y231*E231 -> 0 | AQ231: =AG231+AK231+AO231 -> 0 | AR231: =AH231+AL231 -> 0 | AS231: =AQ231+AR231 -> 0 | AT231: =AI231+AM231+AP231 -> 0 | AU231: =AJ231+AN231 -> 0 | AV231: Spring 2022 | AX231: 2022 | AZ231: 636.6/8 | BD231: 27 | BF231: 34.25 | BH231: Curious About | BJ231: 2.4 | BL231: Animals | BN231: English | BP231: Reinforced Library | BR231: 24 | BT231: K | BX231: 1 - 4 | BZ231: Jill Sherman
A232: =A230 -> 0 | C232: =C230 -> 0 | E232: =E230 -> 0 | G232: 9781645490500 | I232: 9781681519654 | K232: Curious about Cats | O232: Curious about Pets | S232: Amicus | U232: 49 | W232: 23.95 | Y232: 28.95 | AA232: 0 | AG232: 0 | AH232: 0 | AI232: 0 | AJ232: 0 | AK232: 0 | AL232: 0 | AM232: =IF(AND(C232>=1,AC232=""),W232*C232,0) -> 0 | AN232: =IF(AND(C232>=1,AC232="x"),-W232*C232,0) -> 0 | AO232: 0 | AP232: 0 | AQ232: 0 | AR232: 0 | AS232: 0 | AT232: 0 | AU232: 0 | AV232: Spring 2022 | AX232: 2022 | AZ232: 636.8 | BD232: 27 | BF232: 34.25 | BH232: Curious About | BJ232: 2.4 | BL232: Animals | BN232: English | BP232: Reinforced Library | BR232: 24 | BT232: K | BX232: 1 - 4 | BZ232: M.K. Osborne
A233: =A230 -> 0 | C233: =C230 -> 0 | E233: =E230 -> 0 | G233: 9781645490517 | I233: 9781681519661 | K233: Curious about Dogs | O233: Curious about Pets | S233: Amicus | U233: 49 | W233: 23.95 | Y233: 28.95 | AA233: 0 | AG233: 0 | AH233: 0 | AI233: 0 | AJ233: 0 | AK233: 0 | AL233: 0 | AM233: 0 | AN233: 0 | AO233: 0 | AP233: 0 | AQ233: 0 | AR233: 0 | AS233: 0 | AT233: 0 | AU233: 0 | AV233: Spring 2022 | AX233: 2022 | AZ233: 636.7 | BD233: 27 | BF233: 34.25 | BH233: Curious About | BJ233: 2.5 | BL233: Animals | BN233: English | BP233: Reinforced Library | BR233: 24 | BT233: K | BX233: 1 - 4 | BZ233: M.K. Osborne
... 1671 more rows

Sheet Summary
K1:  | M1: BILL TO INFORMATION: | S1:  | U1: ORDER INFORMATION & ADDITIONAL INFO:
K3: Organization: | S3: Sale Rep: | AA3: Backorders Accepted?:
K5: Contact Name: | S5: PO Number: | AA5: Processing Requested?:
K7: Address: | S7: Additional Notes:
K9: City, State, Zip:
A11:  | C11: Remit to: | E11: J. Appleseed Media | K11: eMail Address: | S11:  | U11: PROMOTIONS & TOTALS: | AE11: *Promotions cannot be combined
E13: PO Box 3006 | Mankato, MN 56001 | K13: Phone Number: | U13: =IF(HIDDEN!F11="Yes","Your order qualifies for a promotional item! Choose from one of the following eligible options:","Add more books to qualify for a promotion!") -> Add more books to qualify for a promotion!
E15: (P) 833.776.0483 | (F) 507.388.7330
A17:  | C17: customerservice@jappleseedmedia.com | www.jappleseedmedia.com | K17:  | M17: SHIP TO INFORMATION: | Q17: Click if same as Bill To | U17: =IF(HIDDEN!F3="Yes",HIDDEN!G3,"") -> 
A19:  | C19: Visa, Mastercard, American Express, or Check accepted | K19: Organization: | U19: =IF(HIDDEN!F5="Yes",HIDDEN!G5,"") -> 
K21: Contact Name: | U21: =IF(HIDDEN!F7="Yes",HIDDEN!G7,"") -> 
K23: Address: | U23: Total eBooks | W23: Total Print Books | Y23: Total Bundle Sets
K25: City, State, Zip: | AC25: Subtotal | AE25: =U29+W29+Y29 -> 0
K27: eMail Address: | S27: Qty of Books: | U27: ='Title List'!W6 -> 0 | W27: ='Title List'!Y6 -> 0 | AC27: Less Promotion | AE27: =U31+W31 -> 0
K29: Phone Number: | S29: Subtotal: | U29: ='Title List'!W8 -> 0 | W29: ='Title List'!Y8 -> 0 | Y29: ='Title List'!AA8 -> 0 | AC29: Processing: | AE29: 0
S31: Less Promo: | U31: ='Title List'!W9 -> 0 | W31: ='Title List'!Y9 -> 0 | AC31: Shipping (10%) | AE31: =IF(AE25<100,AE25*10%,0) -> 0
AC33: Total Order | AE33: =AE25+AE27+AE31+AE29 -> 0
AE35: *FREE shipping on orders over $100.00
A37: Multi User eBook Qty | C37: Print Qty | E37: Bundle Qty | G37: eBook ISBN | I37: Print ISBN | K37: Title (NEW listed in Blue) | O37: Series | S37: Publisher | U37: Multi User eBook Price | W37: School / Library Print Price | Y37: Bundle Price | AA37: Subtotal | AC37: Mark X for FREE | AE37: Custom Field

Sheet HIDDEN (hidden)
A1: YES/NO OPTION
A3: Yes | E3: BOGO | F3: =IF('Title List'!AO5>=500,"Yes","No") -> No | G3: =IF(F3="Yes","Eligible for Buy 2, Get 1 FREE","") -> 
A4: No
E5: Gift Card | F5: =IF('Title List'!AP10349>=1000,"Yes","No") -> No | G5: =IF(F5="Yes","Eligible for Amazon Gift Card","") -> 
A7: Subjects | E7: FREE Processing | F7: =IF('Title List'!AE8>=500,"Yes","No") -> No | G7: =IF(F7="Yes","Eligible for Free CUSTOM Processing","") -> 
A8: Animals
A9: Arts, Crafts, & Makerspaces
A10: Biographies
A11: Business & Finance | F11: =IF(COUNTIF(F3:F7,"*Yes*"),"Yes","No") -> No
A12: Careers
A13: Cooking, Food, & Nutrition
A14: Fiction
A15: Geography
A16: Health & Fitness
A17: History
A18: Home & Garden
A19: Language Arts
A20: Legends, Myths, & Paranormal
A21: Math
A22: Media Studies
A23: Music
A24: Nature
A25: Non Fiction
A26: Political Science
A27: Religion & Spirituality
A28: Science
A29: Social & Emotion
A30: Social Studies
A31: Sports & Recreation
A32: Technology & Engineering
A33: Transportation
A34: Travel
